Workbook

Sheet Intro
A34: 1- اضافة قائمة منسدلة للعملاء تكون في الفاتورة تظهر فيCustomer Name بدلا من كتابة العميل كل مرة ويون مرتبط بها رقم الموبايل لكل عميل 2- اظهار الدين السابق في الفاتورة لكل عميل عند انشاء فاتورة جديدة بأسمه 3- تعديل شيت طباعة الفاتورة ليتناسب مع الطباعة على صفحة A5 أو ِA4 4- عمل شيت للعملاء ترحل اليها المبيعات 5- حيث ان هذا الملف ليس من انتاجي لذا ارجو شرح كيف تم اخفاء باقي الاعمدة والصفوف في شيت الفاتورة وشيت طباعة الفاتورة وشكرا جزيلا لحضراتكم

Sheet Stock
A1: Item Code | B1: Item Name | C1: cost price | D1: Sales Price | E1: ‎Beginning inventory | F1: out of stock | G1: Ending inventory
A2: 1 | B2: تيشرت بيزك قطن | C2: 27 | D2: 37 | E2: 238 | F2: =SUMPRODUCT((Table1[كود1]=Table2[[#This Row],[Item Code]])*Table1[كمية1]+(Table1[كود2]=Table2[[#This Row],[Item Code]])*Table1[كمية2]+(Table1[كود3]=Table2[[#This Row],[Item Code]])*Table1[كمية3]+(Table1[كود4]=Table2[[#This Row],[Item Code]])*Table1[كمية4]+(Table1[كود5]=Table2[[#This Row],[Item Code]])*Table1[كمية5]+(Table1[كود6]=Table2[[#This Row],[Item Code]])*Table1[كمية6]+(Table1[كود7]=Table2[[#This Row],[Item Code]])*Table1[كمية7]+(Table1[كود8]=Table2[[#This Row],[Item Code]])*Table1[كمية8]+(Table1[كود9]=Table2[[#This Row],[Item Code]])*Table1[كمية9]+(Table1[كود10]=Table2[[#This Row],[Item Code]])*Table1[كمية10]) -> 0 | G2: =E2-F2 -> 238 | I2: إدخال كميات جديدة للمخزون | M2: =MATCH(I5,Table2[Item Code],0)+1 ->  | N2: ="a"&M2 ->  | O2: =SUMPRODUCT((TEXT(Table1[Date],"yyyy")="2020")*(Table1[كود1]=A2)*Table1[كمية1]+(Table1[كود2]=A2)*Table1[كمية2]+(Table1[كود3]=A2)*Table1[كمية3]+(Table1[كود4]=A2)*Table1[كمية4]+(Table1[كود5]=A2)*Table1[كمية5]+(Table1[كود6]=A2)*Table1[كمية6]+(Table1[كود7]=A2)*Table1[كمية7]+(Table1[كود8]=A2)*Table1[كمية8]+(Table1[كود9]=A2)*Table1[كمية9]+(Table1[كود10]=A2)*Table1[كمية10]) -> 0
A3: 2 | B3: تيشرت روزتا رياضى | C3: 27 | D3: 37 | E3: 130 | F3: =SUMPRODUCT((Table1[كود1]=Table2[[#This Row],[Item Code]])*Table1[كمية1]+(Table1[كود2]=Table2[[#This Row],[Item Code]])*Table1[كمية2]+(Table1[كود3]=Table2[[#This Row],[Item Code]])*Table1[كمية3]+(Table1[كود4]=Table2[[#This Row],[Item Code]])*Table1[كمية4]+(Table1[كود5]=Table2[[#This Row],[Item Code]])*Table1[كمية5]+(Table1[كود6]=Table2[[#This Row],[Item Code]])*Table1[كمية6]+(Table1[كود7]=Table2[[#This Row],[Item Code]])*Table1[كمية7]+(Table1[كود8]=Table2[[#This Row],[Item Code]])*Table1[كمية8]+(Table1[كود9]=Table2[[#This Row],[Item Code]])*Table1[كمية9]+(Table1[كود10]=Table2[[#This Row],[Item Code]])*Table1[كمية10]) -> 0 | G3: =E3-F3 -> 130
A4: 3 | B4: ترنج غطس | C4: 115 | D4: 155 | E4: 16 | F4: =SUMPRODUCT((Table1[كود1]=Table2[[#This Row],[Item Code]])*Table1[كمية1]+(Table1[كود2]=Table2[[#This Row],[Item Code]])*Table1[كمية2]+(Table1[كود3]=Table2[[#This Row],[Item Code]])*Table1[كمية3]+(Table1[كود4]=Table2[[#This Row],[Item Code]])*Table1[كمية4]+(Table1[كود5]=Table2[[#This Row],[Item Code]])*Table1[كمية5]+(Table1[كود6]=Table2[[#This Row],[Item Code]])*Table1[كمية6]+(Table1[كود7]=Table2[[#This Row],[Item Code]])*Table1[كمية7]+(Table1[كود8]=Table2[[#This Row],[Item Code]])*Table1[كمية8]+(Table1[كود9]=Table2[[#This Row],[Item Code]])*Table1[كمية9]+(Table1[كود10]=Table2[[#This Row],[Item Code]])*Table1[كمية10]) -> 0 | G4: =E4-F4 -> 16 | I4: Item Code | J4: Item Name | K4: Quantity
A5: 4 | B5: ترنج ميلتون m:2xl | D5: 95 | E5: 0 | F5: =SUMPRODUCT((Table1[كود1]=Table2[[#This Row],[Item Code]])*Table1[كمية1]+(Table1[كود2]=Table2[[#This Row],[Item Code]])*Table1[كمية2]+(Table1[كود3]=Table2[[#This Row],[Item Code]])*Table1[كمية3]+(Table1[كود4]=Table2[[#This Row],[Item Code]])*Table1[كمية4]+(Table1[كود5]=Table2[[#This Row],[Item Code]])*Table1[كمية5]+(Table1[كود6]=Table2[[#This Row],[Item Code]])*Table1[كمية6]+(Table1[كود7]=Table2[[#This Row],[Item Code]])*Table1[كمية7]+(Table1[كود8]=Table2[[#This Row],[Item Code]])*Table1[كمية8]+(Table1[كود9]=Table2[[#This Row],[Item Code]])*Table1[كمية9]+(Table1[كود10]=Table2[[#This Row],[Item Code]])*Table1[كمية10]) -> 0 | G5: 0 | J5: =IFERROR(VLOOKUP(I5,Table2[[Item Code]:[Item Name]],2,FALSE),"") -> 
A6: 5 | B6: ترنج اطفال | D6: 60 | E6: 0 | F6: =SUMPRODUCT((Table1[كود1]=Table2[[#This Row],[Item Code]])*Table1[كمية1]+(Table1[كود2]=Table2[[#This Row],[Item Code]])*Table1[كمية2]+(Table1[كود3]=Table2[[#This Row],[Item Code]])*Table1[كمية3]+(Table1[كود4]=Table2[[#This Row],[Item Code]])*Table1[كمية4]+(Table1[كود5]=Table2[[#This Row],[Item Code]])*Table1[كمية5]+(Table1[كود6]=Table2[[#This Row],[Item Code]])*Table1[كمية6]+(Table1[كود7]=Table2[[#This Row],[Item Code]])*Table1[كمية7]+(Table1[كود8]=Table2[[#This Row],[Item Code]])*Table1[كمية8]+(Table1[كود9]=Table2[[#This Row],[Item Code]])*Table1[كمية9]+(Table1[كود10]=Table2[[#This Row],[Item Code]])*Table1[كمية10]) -> 0 | G6: 0
A7: 6 | B7: شروال شبابى ملتون | C7: 37 | D7: 55 | E7: 92 | F7: =SUMPRODUCT((Table1[كود1]=Table2[[#This Row],[Item Code]])*Table1[كمية1]+(Table1[كود2]=Table2[[#This Row],[Item Code]])*Table1[كمية2]+(Table1[كود3]=Table2[[#This Row],[Item Code]])*Table1[كمية3]+(Table1[كود4]=Table2[[#This Row],[Item Code]])*Table1[كمية4]+(Table1[كود5]=Table2[[#This Row],[Item Code]])*Table1[كمية5]+(Table1[كود6]=Table2[[#This Row],[Item Code]])*Table1[كمية6]+(Table1[كود7]=Table2[[#This Row],[Item Code]])*Table1[كمية7]+(Table1[كود8]=Table2[[#This Row],[Item Code]])*Table1[كمية8]+(Table1[كود9]=Table2[[#This Row],[Item Code]])*Table1[كمية9]+(Table1[كود10]=Table2[[#This Row],[Item Code]])*Table1[كمية10]) -> 2 | G7: 90
A8: 7 | B8: شروال اولادى | C8: 25 | D8: 35 | E8: 1 | F8: =SUMPRODUCT((Table1[كود1]=Table2[[#This Row],[Item Code]])*Table1[كمية1]+(Table1[كود2]=Table2[[#This Row],[Item Code]])*Table1[كمية2]+(Table1[كود3]=Table2[[#This Row],[Item Code]])*Table1[كمية3]+(Table1[كود4]=Table2[[#This Row],[Item Code]])*Table1[كمية4]+(Table1[كود5]=Table2[[#This Row],[Item Code]])*Table1[كمية5]+(Table1[كود6]=Table2[[#This Row],[Item Code]])*Table1[كمية6]+(Table1[كود7]=Table2[[#This Row],[Item Code]])*Table1[كمية7]+(Table1[كود8]=Table2[[#This Row],[Item Code]])*Table1[كمية8]+(Table1[كود9]=Table2[[#This Row],[Item Code]])*Table1[كمية9]+(Table1[كود10]=Table2[[#This Row],[Item Code]])*Table1[كمية10]) -> 0 | G8: 1
A9: 8 | B9: تيشرت اطفال بيزك عادى | C9: 17 | D9: 23 | E9: 249 | F9: =SUMPRODUCT((Table1[كود1]=Table2[[#This Row],[Item Code]])*Table1[كمية1]+(Table1[كود2]=Table2[[#This Row],[Item Code]])*Table1[كمية2]+(Table1[كود3]=Table2[[#This Row],[Item Code]])*Table1[كمية3]+(Table1[كود4]=Table2[[#This Row],[Item Code]])*Table1[كمية4]+(Table1[كود5]=Table2[[#This Row],[Item Code]])*Table1[كمية5]+(Table1[كود6]=Table2[[#This Row],[Item Code]])*Table1[كمية6]+(Table1[كود7]=Table2[[#This Row],[Item Code]])*Table1[كمية7]+(Table1[كود8]=Table2[[#This Row],[Item Code]])*Table1[كمية8]+(Table1[كود9]=Table2[[#This Row],[Item Code]])*Table1[كمية9]+(Table1[كود10]=Table2[[#This Row],[Item Code]])*Table1[كمية10]) -> 0 | G9: 249
A10: 9 | B10: تيشرت اولادى خروج | D10: 25 | E10: 3 | F10: =SUMPRODUCT((Table1[كود1]=Table2[[#This Row],[Item Code]])*Table1[كمية1]+(Table1[كود2]=Table2[[#This Row],[Item Code]])*Table1[كمية2]+(Table1[كود3]=Table2[[#This Row],[Item Code]])*Table1[كمية3]+(Table1[كود4]=Table2[[#This Row],[Item Code]])*Table1[كمية4]+(Table1[كود5]=Table2[[#This Row],[Item Code]])*Table1[كمية5]+(Table1[كود6]=Table2[[#This Row],[Item Code]])*Table1[كمية6]+(Table1[كود7]=Table2[[#This Row],[Item Code]])*Table1[كمية7]+(Table1[كود8]=Table2[[#This Row],[Item Code]])*Table1[كمية8]+(Table1[كود9]=Table2[[#This Row],[Item Code]])*Table1[كمية9]+(Table1[كود10]=Table2[[#This Row],[Item Code]])*Table1[كمية10]) -> 0 | G10: 3
A11: 10 | B11: شورت اطفال 2:8 | D11: 17 | E11: 0 | F11: =SUMPRODUCT((Table1[كود1]=Table2[[#This Row],[Item Code]])*Table1[كمية1]+(Table1[كود2]=Table2[[#This Row],[Item Code]])*Table1[كمية2]+(Table1[كود3]=Table2[[#This Row],[Item Code]])*Table1[كمية3]+(Table1[كود4]=Table2[[#This Row],[Item Code]])*Table1[كمية4]+(Table1[كود5]=Table2[[#This Row],[Item Code]])*Table1[كمية5]+(Table1[كود6]=Table2[[#This Row],[Item Code]])*Table1[كمية6]+(Table1[كود7]=Table2[[#This Row],[Item Code]])*Table1[كمية7]+(Table1[كود8]=Table2[[#This Row],[Item Code]])*Table1[كمية8]+(Table1[كود9]=Table2[[#This Row],[Item Code]])*Table1[كمية9]+(Table1[كود10]=Table2[[#This Row],[Item Code]])*Table1[كمية10]) -> 0 | G11: 0
A12: 11 | B12: برامودا شبابى | C12: 31 | D12: 38 | E12: 0 | F12: =SUMPRODUCT((Table1[كود1]=Table2[[#This Row],[Item Code]])*Table1[كمية1]+(Table1[كود2]=Table2[[#This Row],[Item Code]])*Table1[كمية2]+(Table1[كود3]=Table2[[#This Row],[Item Code]])*Table1[كمية3]+(Table1[كود4]=Table2[[#This Row],[Item Code]])*Table1[كمية4]+(Table1[كود5]=Table2[[#This Row],[Item Code]])*Table1[كمية5]+(Table1[كود6]=Table2[[#This Row],[Item Code]])*Table1[كمية6]+(Table1[كود7]=Table2[[#This Row],[Item Code]])*Table1[كمية7]+(Table1[كود8]=Table2[[#This Row],[Item Code]])*Table1[كمية8]+(Table1[كود9]=Table2[[#This Row],[Item Code]])*Table1[كمية9]+(Table1[كود10]=Table2[[#This Row],[Item Code]])*Table1[كمية10]) -> 0 | G12: 0
A13: 12 | B13: طقم بناتى برامودا | E13: 0 | F13: =SUMPRODUCT((Table1[كود1]=Table2[[#This Row],[Item Code]])*Table1[كمية1]+(Table1[كود2]=Table2[[#This Row],[Item Code]])*Table1[كمية2]+(Table1[كود3]=Table2[[#This Row],[Item Code]])*Table1[كمية3]+(Table1[كود4]=Table2[[#This Row],[Item Code]])*Table1[كمية4]+(Table1[كود5]=Table2[[#This Row],[Item Code]])*Table1[كمية5]+(Table1[كود6]=Table2[[#This Row],[Item Code]])*Table1[كمية6]+(Table1[كود7]=Table2[[#This Row],[Item Code]])*Table1[كمية7]+(Table1[كود8]=Table2[[#This Row],[Item Code]])*Table1[كمية8]+(Table1[كود9]=Table2[[#This Row],[Item Code]])*Table1[كمية9]+(Table1[كود10]=Table2[[#This Row],[Item Code]])*Table1[كمية10]) -> 0 | G13: 0 | I13: محتاج
A14: 13 | B14: تيشرت بناتى مطبوع | C14: 17 | D14: 23 | E14: 16 | F14: =SUMPRODUCT((Table1[كود1]=Table2[[#This Row],[Item Code]])*Table1[كمية1]+(Table1[كود2]=Table2[[#This Row],[Item Code]])*Table1[كمية2]+(Table1[كود3]=Table2[[#This Row],[Item Code]])*Table1[كمية3]+(Table1[كود4]=Table2[[#This Row],[Item Code]])*Table1[كمية4]+(Table1[كود5]=Table2[[#This Row],[Item Code]])*Table1[كمية5]+(Table1[كود6]=Table2[[#This Row],[Item Code]])*Table1[كمية6]+(Table1[كود7]=Table2[[#This Row],[Item Code]])*Table1[كمية7]+(Table1[كود8]=Table2[[#This Row],[Item Code]])*Table1[كمية8]+(Table1[كود9]=Table2[[#This Row],[Item Code]])*Table1[كمية9]+(Table1[كود10]=Table2[[#This Row],[Item Code]])*Table1[كمية10]) -> 0 | G14: 16 | I14: 1- اضافة قائمة منسدلة للعملاء تكون في الفاتورة تظهر فيCustomer Name بدلا من كتابة العميل كل مرة ويون مرتبط بها رقم الموبايل لكل عميل 2- اظهار الدين السابق في الفاتورة لكل عميل عند انشاء فاتورة جديدة بأسمه 3- تعديل شيت طباعة الفاتورة ليتناسب مع الطباعة على صفحة A5 أو ِA4 4- عمل شيت للعملاء ترحل اليها المبيعات 5- حيث ان هذا الملف ليس من انتاجي لذا ارجو شرح كيف تم اخفاء باقي الاعمدة والصفوف في شيت الفاتورة وشيت طباعة الفاتورة وشكرا جزيلا لحضراتكم
A15: 14 | B15: جاكت غطس | C15: 60 | D15: 75 | E15: 12 | F15: =SUMPRODUCT((Table1[كود1]=Table2[[#This Row],[Item Code]])*Table1[كمية1]+(Table1[كود2]=Table2[[#This Row],[Item Code]])*Table1[كمية2]+(Table1[كود3]=Table2[[#This Row],[Item Code]])*Table1[كمية3]+(Table1[كود4]=Table2[[#This Row],[Item Code]])*Table1[كمية4]+(Table1[كود5]=Table2[[#This Row],[Item Code]])*Table1[كمية5]+(Table1[كود6]=Table2[[#This Row],[Item Code]])*Table1[كمية6]+(Table1[كود7]=Table2[[#This Row],[Item Code]])*Table1[كمية7]+(Table1[كود8]=Table2[[#This Row],[Item Code]])*Table1[كمية8]+(Table1[كود9]=Table2[[#This Row],[Item Code]])*Table1[كمية9]+(Table1[كود10]=Table2[[#This Row],[Item Code]])*Table1[كمية10]) -> 0 | G15: 12
A16: 15 | B16: شروال جيشى | D16: 50 | E16: 0 | F16: =SUMPRODUCT((Table1[كود1]=Table2[[#This Row],[Item Code]])*Table1[كمية1]+(Table1[كود2]=Table2[[#This Row],[Item Code]])*Table1[كمية2]+(Table1[كود3]=Table2[[#This Row],[Item Code]])*Table1[كمية3]+(Table1[كود4]=Table2[[#This Row],[Item Code]])*Table1[كمية4]+(Table1[كود5]=Table2[[#This Row],[Item Code]])*Table1[كمية5]+(Table1[كود6]=Table2[[#This Row],[Item Code]])*Table1[كمية6]+(Table1[كود7]=Table2[[#This Row],[Item Code]])*Table1[كمية7]+(Table1[كود8]=Table2[[#This Row],[Item Code]])*Table1[كمية8]+(Table1[كود9]=Table2[[#This Row],[Item Code]])*Table1[كمية9]+(Table1[كود10]=Table2[[#This Row],[Item Code]])*Table1[كمية10]) -> 0 | G16: 0
A17: 16 | B17: شروال جيشى اولادى | C17: 30 | D17: 35 | E17: 0 | F17: =SUMPRODUCT((Table1[كود1]=Table2[[#This Row],[Item Code]])*Table1[كمية1]+(Table1[كود2]=Table2[[#This Row],[Item Code]])*Table1[كمية2]+(Table1[كود3]=Table2[[#This Row],[Item Code]])*Table1[كمية3]+(Table1[كود4]=Table2[[#This Row],[Item Code]])*Table1[كمية4]+(Table1[كود5]=Table2[[#This Row],[Item Code]])*Table1[كمية5]+(Table1[كود6]=Table2[[#This Row],[Item Code]])*Table1[كمية6]+(Table1[كود7]=Table2[[#This Row],[Item Code]])*Table1[كمية7]+(Table1[كود8]=Table2[[#This Row],[Item Code]])*Table1[كمية8]+(Table1[كود9]=Table2[[#This Row],[Item Code]])*Table1[كمية9]+(Table1[كود10]=Table2[[#This Row],[Item Code]])*Table1[كمية10]) -> 0 | G17: 0
A18: 17 | B18: تيشرت كلفن | E18: 0 | F18: =SUMPRODUCT((Table1[كود1]=Table2[[#This Row],[Item Code]])*Table1[كمية1]+(Table1[كود2]=Table2[[#This Row],[Item Code]])*Table1[كمية2]+(Table1[كود3]=Table2[[#This Row],[Item Code]])*Table1[كمية3]+(Table1[كود4]=Table2[[#This Row],[Item Code]])*Table1[كمية4]+(Table1[كود5]=Table2[[#This Row],[Item Code]])*Table1[كمية5]+(Table1[كود6]=Table2[[#This Row],[Item Code]])*Table1[كمية6]+(Table1[كود7]=Table2[[#This Row],[Item Code]])*Table1[كمية7]+(Table1[كود8]=Table2[[#This Row],[Item Code]])*Table1[كمية8]+(Table1[كود9]=Table2[[#This Row],[Item Code]])*Table1[كمية9]+(Table1[كود10]=Table2[[#This Row],[Item Code]])*Table1[كمية10]) -> 0 | G18: 0
A19: 18 | B19: شروال حريمى | C19: 37 | D19: 50 | E19: 16 | F19: =SUMPRODUCT((Table1[كود1]=Table2[[#This Row],[Item Code]])*Table1[كمية1]+(Table1[كود2]=Table2[[#This Row],[Item Code]])*Table1[كمية2]+(Table1[كود3]=Table2[[#This Row],[Item Code]])*Table1[كمية3]+(Table1[كود4]=Table2[[#This Row],[Item Code]])*Table1[كمية4]+(Table1[كود5]=Table2[[#This Row],[Item Code]])*Table1[كمية5]+(Table1[كود6]=Table2[[#This Row],[Item Code]])*Table1[كمية6]+(Table1[كود7]=Table2[[#This Row],[Item Code]])*Table1[كمية7]+(Table1[كود8]=Table2[[#This Row],[Item Code]])*Table1[كمية8]+(Table1[كود9]=Table2[[#This Row],[Item Code]])*Table1[كمية9]+(Table1[كود10]=Table2[[#This Row],[Item Code]])*Table1[كمية10]) -> 0 | G19: 16
A20: 19 | B20: تيشيرت بولو | C20: 38 | D20: 65 | E20: 11 | F20: =SUMPRODUCT((Table1[كود1]=Table2[[#This Row],[Item Code]])*Table1[كمية1]+(Table1[كود2]=Table2[[#This Row],[Item Code]])*Table1[كمية2]+(Table1[كود3]=Table2[[#This Row],[Item Code]])*Table1[كمية3]+(Table1[كود4]=Table2[[#This Row],[Item Code]])*Table1[كمية4]+(Table1[كود5]=Table2[[#This Row],[Item Code]])*Table1[كمية5]+(Table1[كود6]=Table2[[#This Row],[Item Code]])*Table1[كمية6]+(Table1[كود7]=Table2[[#This Row],[Item Code]])*Table1[كمية7]+(Table1[كود8]=Table2[[#This Row],[Item Code]])*Table1[كمية8]+(Table1[كود9]=Table2[[#This Row],[Item Code]])*Table1[كمية9]+(Table1[كود10]=Table2[[#This Row],[Item Code]])*Table1[كمية10]) -> 1 | G20: 10
A21: 20 | B21: تيشرت قطن لاكوست | C21: 28 | D21: 43 | E21: 353 | F21: =SUMPRODUCT((Table1[كود1]=Table2[[#This Row],[Item Code]])*Table1[كمية1]+(Table1[كود2]=Table2[[#This Row],[Item Code]])*Table1[كمية2]+(Table1[كود3]=Table2[[#This Row],[Item Code]])*Table1[كمية3]+(Table1[كود4]=Table2[[#This Row],[Item Code]])*Table1[كمية4]+(Table1[كود5]=Table2[[#This Row],[Item Code]])*Table1[كمية5]+(Table1[كود6]=Table2[[#This Row],[Item Code]])*Table1[كمية6]+(Table1[كود7]=Table2[[#This Row],[Item Code]])*Table1[كمية7]+(Table1[كود8]=Table2[[#This Row],[Item Code]])*Table1[كمية8]+(Table1[كود9]=Table2[[#This Row],[Item Code]])*Table1[كمية9]+(Table1[كود10]=Table2[[#This Row],[Item Code]])*Table1[كمية10]) -> 0 | G21: 353
A22: 21 | B22: طقم اطفال 2:12 | C22: 16 | D22: 35 | E22: 42 | F22: =SUMPRODUCT((Table1[كود1]=Table2[[#This Row],[Item Code]])*Table1[كمية1]+(Table1[كود2]=Table2[[#This Row],[Item Code]])*Table1[كمية2]+(Table1[كود3]=Table2[[#This Row],[Item Code]])*Table1[كمية3]+(Table1[كود4]=Table2[[#This Row],[Item Code]])*Table1[كمية4]+(Table1[كود5]=Table2[[#This Row],[Item Code]])*Table1[كمية5]+(Table1[كود6]=Table2[[#This Row],[Item Code]])*Table1[كمية6]+(Table1[كود7]=Table2[[#This Row],[Item Code]])*Table1[كمية7]+(Table1[كود8]=Table2[[#This Row],[Item Code]])*Table1[كمية8]+(Table1[كود9]=Table2[[#This Row],[Item Code]])*Table1[كمية9]+(Table1[كود10]=Table2[[#This Row],[Item Code]])*Table1[كمية10]) -> 0 | G22: 42
A23: 22 | B23: شورت | C23: 27 | D23: 32 | E23: 29 | F23: =SUMPRODUCT((Table1[كود1]=Table2[[#This Row],[Item Code]])*Table1[كمية1]+(Table1[كود2]=Table2[[#This Row],[Item Code]])*Table1[كمية2]+(Table1[كود3]=Table2[[#This Row],[Item Code]])*Table1[كمية3]+(Table1[كود4]=Table2[[#This Row],[Item Code]])*Table1[كمية4]+(Table1[كود5]=Table2[[#This Row],[Item Code]])*Table1[كمية5]+(Table1[كود6]=Table2[[#This Row],[Item Code]])*Table1[كمية6]+(Table1[كود7]=Table2[[#This Row],[Item Code]])*Table1[كمية7]+(Table1[كود8]=Table2[[#This Row],[Item Code]])*Table1[كمية8]+(Table1[كود9]=Table2[[#This Row],[Item Code]])*Table1[كمية9]+(Table1[كود10]=Table2[[#This Row],[Item Code]])*Table1[كمية10]) -> 0 | G23: 29
A24: 23 | B24: طقم شبابي ملتون | C24: 64 | D24: 85 | E24: 45 | F24: =SUMPRODUCT((Table1[كود1]=Table2[[#This Row],[Item Code]])*Table1[كمية1]+(Table1[كود2]=Table2[[#This Row],[Item Code]])*Table1[كمية2]+(Table1[كود3]=Table2[[#This Row],[Item Code]])*Table1[كمية3]+(Table1[كود4]=Table2[[#This Row],[Item Code]])*Table1[كمية4]+(Table1[كود5]=Table2[[#This Row],[Item Code]])*Table1[كمية5]+(Table1[كود6]=Table2[[#This Row],[Item Code]])*Table1[كمية6]+(Table1[كود7]=Table2[[#This Row],[Item Code]])*Table1[كمية7]+(Table1[كود8]=Table2[[#This Row],[Item Code]])*Table1[كمية8]+(Table1[كود9]=Table2[[#This Row],[Item Code]])*Table1[كمية9]+(Table1[كود10]=Table2[[#This Row],[Item Code]])*Table1[كمية10]) -> 0 | G24: 45
A25: 24 | B25: بنطلون غطس | C25: 55 | D25: 80 | E25: 1 | F25: =SUMPRODUCT((Table1[كود1]=Table2[[#This Row],[Item Code]])*Table1[كمية1]+(Table1[كود2]=Table2[[#This Row],[Item Code]])*Table1[كمية2]+(Table1[كود3]=Table2[[#This Row],[Item Code]])*Table1[كمية3]+(Table1[كود4]=Table2[[#This Row],[Item Code]])*Table1[كمية4]+(Table1[كود5]=Table2[[#This Row],[Item Code]])*Table1[كمية5]+(Table1[كود6]=Table2[[#This Row],[Item Code]])*Table1[كمية6]+(Table1[كود7]=Table2[[#This Row],[Item Code]])*Table1[كمية7]+(Table1[كود8]=Table2[[#This Row],[Item Code]])*Table1[كمية8]+(Table1[كود9]=Table2[[#This Row],[Item Code]])*Table1[كمية9]+(Table1[كود10]=Table2[[#This Row],[Item Code]])*Table1[كمية10]) -> 0 | G25: 1
A26: 25 | B26: بنطلون ملتون 3 X | C26: 37 | D26: 50 | E26: 13 | F26: =SUMPRODUCT((Table1[كود1]=Table2[[#This Row],[Item Code]])*Table1[كمية1]+(Table1[كود2]=Table2[[#This Row],[Item Code]])*Table1[كمية2]+(Table1[كود3]=Table2[[#This Row],[Item Code]])*Table1[كمية3]+(Table1[كود4]=Table2[[#This Row],[Item Code]])*Table1[كمية4]+(Table1[كود5]=Table2[[#This Row],[Item Code]])*Table1[كمية5]+(Table1[كود6]=Table2[[#This Row],[Item Code]])*Table1[كمية6]+(Table1[كود7]=Table2[[#This Row],[Item Code]])*Table1[كمية7]+(Table1[كود8]=Table2[[#This Row],[Item Code]])*Table1[كمية8]+(Table1[كود9]=Table2[[#This Row],[Item Code]])*Table1[كمية9]+(Table1[كود10]=Table2[[#This Row],[Item Code]])*Table1[كمية10]) -> 0 | G26: 13
A27: 26 | B27: شروال اطفال 2:8 | D27: 31 | E27: 0 | F27: =SUMPRODUCT((Table1[كود1]=Table2[[#This Row],[Item Code]])*Table1[كمية1]+(Table1[كود2]=Table2[[#This Row],[Item Code]])*Table1[كمية2]+(Table1[كود3]=Table2[[#This Row],[Item Code]])*Table1[كمية3]+(Table1[كود4]=Table2[[#This Row],[Item Code]])*Table1[كمية4]+(Table1[كود5]=Table2[[#This Row],[Item Code]])*Table1[كمية5]+(Table1[كود6]=Table2[[#This Row],[Item Code]])*Table1[كمية6]+(Table1[كود7]=Table2[[#This Row],[Item Code]])*Table1[كمية7]+(Table1[كود8]=Table2[[#This Row],[Item Code]])*Table1[كمية8]+(Table1[كود9]=Table2[[#This Row],[Item Code]])*Table1[كمية9]+(Table1[كود10]=Table2[[#This Row],[Item Code]])*Table1[كمية10]) -> 0 | G27: 0
A28: 27 | B28: شروال اطفال 10:14 | D28: 35 | E28: 0 | F28: =SUMPRODUCT((Table1[كود1]=Table2[[#This Row],[Item Code]])*Table1[كمية1]+(Table1[كود2]=Table2[[#This Row],[Item Code]])*Table1[كمية2]+(Table1[كود3]=Table2[[#This Row],[Item Code]])*Table1[كمية3]+(Table1[كود4]=Table2[[#This Row],[Item Code]])*Table1[كمية4]+(Table1[كود5]=Table2[[#This Row],[Item Code]])*Table1[كمية5]+(Table1[كود6]=Table2[[#This Row],[Item Code]])*Table1[كمية6]+(Table1[كود7]=Table2[[#This Row],[Item Code]])*Table1[كمية7]+(Table1[كود8]=Table2[[#This Row],[Item Code]])*Table1[كمية8]+(Table1[كود9]=Table2[[#This Row],[Item Code]])*Table1[كمية9]+(Table1[كود10]=Table2[[#This Row],[Item Code]])*Table1[كمية10]) -> 0 | G28: 0
A29: 28 | B29: شروال اطفال مقاسات مختلفة | D29: 35 | E29: 22 | F29: =SUMPRODUCT((Table1[كود1]=Table2[[#This Row],[Item Code]])*Table1[كمية1]+(Table1[كود2]=Table2[[#This Row],[Item Code]])*Table1[كمية2]+(Table1[كود3]=Table2[[#This Row],[Item Code]])*Table1[كمية3]+(Table1[كود4]=Table2[[#This Row],[Item Code]])*Table1[كمية4]+(Table1[كود5]=Table2[[#This Row],[Item Code]])*Table1[كمية5]+(Table1[كود6]=Table2[[#This Row],[Item Code]])*Table1[كمية6]+(Table1[كود7]=Table2[[#This Row],[Item Code]])*Table1[كمية7]+(Table1[كود8]=Table2[[#This Row],[Item Code]])*Table1[كمية8]+(Table1[كود9]=Table2[[#This Row],[Item Code]])*Table1[كمية9]+(Table1[كود10]=Table2[[#This Row],[Item Code]])*Table1[كمية10]) -> 0 | G29: 22
A30: 29 | B30: شروال اطفال مقاس S | D30: 37 | E30: 56 | F30: =SUMPRODUCT((Table1[كود1]=Table2[[#This Row],[Item Code]])*Table1[كمية1]+(Table1[كود2]=Table2[[#This Row],[Item Code]])*Table1[كمية2]+(Table1[كود3]=Table2[[#This Row],[Item Code]])*Table1[كمية3]+(Table1[كود4]=Table2[[#This Row],[Item Code]])*Table1[كمية4]+(Table1[كود5]=Table2[[#This Row],[Item Code]])*Table1[كمية5]+(Table1[كود6]=Table2[[#This Row],[Item Code]])*Table1[كمية6]+(Table1[كود7]=Table2[[#This Row],[Item Code]])*Table1[كمية7]+(Table1[كود8]=Table2[[#This Row],[Item Code]])*Table1[كمية8]+(Table1[كود9]=Table2[[#This Row],[Item Code]])*Table1[كمية9]+(Table1[كود10]=Table2[[#This Row],[Item Code]])*Table1[كمية10]) -> 0 | G30: 56
A31: 30 | E31: 0 | F31: =SUMPRODUCT((Table1[كود1]=Table2[[#This Row],[Item Code]])*Table1[كمية1]+(Table1[كود2]=Table2[[#This Row],[Item Code]])*Table1[كمية2]+(Table1[كود3]=Table2[[#This Row],[Item Code]])*Table1[كمية3]+(Table1[كود4]=Table2[[#This Row],[Item Code]])*Table1[كمية4]+(Table1[كود5]=Table2[[#This Row],[Item Code]])*Table1[كمية5]+(Table1[كود6]=Table2[[#This Row],[Item Code]])*Table1[كمية6]+(Table1[كود7]=Table2[[#This Row],[Item Code]])*Table1[كمية7]+(Table1[كود8]=Table2[[#This Row],[Item Code]])*Table1[كمية8]+(Table1[كود9]=Table2[[#This Row],[Item Code]])*Table1[كمية9]+(Table1[كود10]=Table2[[#This Row],[Item Code]])*Table1[كمية10]) -> 0 | G31: 0
A32: 31 | E32: 0 | F32: =SUMPRODUCT((Table1[كود1]=Table2[[#This Row],[Item Code]])*Table1[كمية1]+(Table1[كود2]=Table2[[#This Row],[Item Code]])*Table1[كمية2]+(Table1[كود3]=Table2[[#This Row],[Item Code]])*Table1[كمية3]+(Table1[كود4]=Table2[[#This Row],[Item Code]])*Table1[كمية4]+(Table1[كود5]=Table2[[#This Row],[Item Code]])*Table1[كمية5]+(Table1[كود6]=Table2[[#This Row],[Item Code]])*Table1[كمية6]+(Table1[كود7]=Table2[[#This Row],[Item Code]])*Table1[كمية7]+(Table1[كود8]=Table2[[#This Row],[Item Code]])*Table1[كمية8]+(Table1[كود9]=Table2[[#This Row],[Item Code]])*Table1[كمية9]+(Table1[كود10]=Table2[[#This Row],[Item Code]])*Table1[كمية10]) -> 0 | G32: 0
A33: 32 | E33: 0 | F33: =SUMPRODUCT((Table1[كود1]=Table2[[#This Row],[Item Code]])*Table1[كمية1]+(Table1[كود2]=Table2[[#This Row],[Item Code]])*Table1[كمية2]+(Table1[كود3]=Table2[[#This Row],[Item Code]])*Table1[كمية3]+(Table1[كود4]=Table2[[#This Row],[Item Code]])*Table1[كمية4]+(Table1[كود5]=Table2[[#This Row],[Item Code]])*Table1[كمية5]+(Table1[كود6]=Table2[[#This Row],[Item Code]])*Table1[كمية6]+(Table1[كود7]=Table2[[#This Row],[Item Code]])*Table1[كمية7]+(Table1[كود8]=Table2[[#This Row],[Item Code]])*Table1[كمية8]+(Table1[كود9]=Table2[[#This Row],[Item Code]])*Table1[كمية9]+(Table1[كود10]=Table2[[#This Row],[Item Code]])*Table1[كمية10]) -> 0 | G33: 0
A34: 33 | E34: 0 | F34: =SUMPRODUCT((Table1[كود1]=Table2[[#This Row],[Item Code]])*Table1[كمية1]+(Table1[كود2]=Table2[[#This Row],[Item Code]])*Table1[كمية2]+(Table1[كود3]=Table2[[#This Row],[Item Code]])*Table1[كمية3]+(Table1[كود4]=Table2[[#This Row],[Item Code]])*Table1[كمية4]+(Table1[كود5]=Table2[[#This Row],[Item Code]])*Table1[كمية5]+(Table1[كود6]=Table2[[#This Row],[Item Code]])*Table1[كمية6]+(Table1[كود7]=Table2[[#This Row],[Item Code]])*Table1[كمية7]+(Table1[كود8]=Table2[[#This Row],[Item Code]])*Table1[كمية8]+(Table1[كود9]=Table2[[#This Row],[Item Code]])*Table1[كمية9]+(Table1[كود10]=Table2[[#This Row],[Item Code]])*Table1[كمية10]) -> 0 | G34: 0
A35: 34 | E35: 0 | F35: =SUMPRODUCT((Table1[كود1]=Table2[[#This Row],[Item Code]])*Table1[كمية1]+(Table1[كود2]=Table2[[#This Row],[Item Code]])*Table1[كمية2]+(Table1[كود3]=Table2[[#This Row],[Item Code]])*Table1[كمية3]+(Table1[كود4]=Table2[[#This Row],[Item Code]])*Table1[كمية4]+(Table1[كود5]=Table2[[#This Row],[Item Code]])*Table1[كمية5]+(Table1[كود6]=Table2[[#This Row],[Item Code]])*Table1[كمية6]+(Table1[كود7]=Table2[[#This Row],[Item Code]])*Table1[كمية7]+(Table1[كود8]=Table2[[#This Row],[Item Code]])*Table1[كمية8]+(Table1[كود9]=Table2[[#This Row],[Item Code]])*Table1[كمية9]+(Table1[كود10]=Table2[[#This Row],[Item Code]])*Table1[كمية10]) -> 0 | G35: 0
A36: 35 | E36: 0 | F36: =SUMPRODUCT((Table1[كود1]=Table2[[#This Row],[Item Code]])*Table1[كمية1]+(Table1[كود2]=Table2[[#This Row],[Item Code]])*Table1[كمية2]+(Table1[كود3]=Table2[[#This Row],[Item Code]])*Table1[كمية3]+(Table1[كود4]=Table2[[#This Row],[Item Code]])*Table1[كمية4]+(Table1[كود5]=Table2[[#This Row],[Item Code]])*Table1[كمية5]+(Table1[كود6]=Table2[[#This Row],[Item Code]])*Table1[كمية6]+(Table1[كود7]=Table2[[#This Row],[Item Code]])*Table1[كمية7]+(Table1[كود8]=Table2[[#This Row],[Item Code]])*Table1[كمية8]+(Table1[كود9]=Table2[[#This Row],[Item Code]])*Table1[كمية9]+(Table1[كود10]=Table2[[#This Row],[Item Code]])*Table1[كمية10]) -> 0 | G36: 0
A37: 36 | E37: 0 | F37: =SUMPRODUCT((Table1[كود1]=Table2[[#This Row],[Item Code]])*Table1[كمية1]+(Table1[كود2]=Table2[[#This Row],[Item Code]])*Table1[كمية2]+(Table1[كود3]=Table2[[#This Row],[Item Code]])*Table1[كمية3]+(Table1[كود4]=Table2[[#This Row],[Item Code]])*Table1[كمية4]+(Table1[كود5]=Table2[[#This Row],[Item Code]])*Table1[كمية5]+(Table1[كود6]=Table2[[#This Row],[Item Code]])*Table1[كمية6]+(Table1[كود7]=Table2[[#This Row],[Item Code]])*Table1[كمية7]+(Table1[كود8]=Table2[[#This Row],[Item Code]])*Table1[كمية8]+(Table1[كود9]=Table2[[#This Row],[Item Code]])*Table1[كمية9]+(Table1[كود10]=Table2[[#This Row],[Item Code]])*Table1[كمية10]) -> 0 | G37: 0
A38: 37 | E38: 0 | F38: =SUMPRODUCT((Table1[كود1]=Table2[[#This Row],[Item Code]])*Table1[كمية1]+(Table1[كود2]=Table2[[#This Row],[Item Code]])*Table1[كمية2]+(Table1[كود3]=Table2[[#This Row],[Item Code]])*Table1[كمية3]+(Table1[كود4]=Table2[[#This Row],[Item Code]])*Table1[كمية4]+(Table1[كود5]=Table2[[#This Row],[Item Code]])*Table1[كمية5]+(Table1[كود6]=Table2[[#This Row],[Item Code]])*Table1[كمية6]+(Table1[كود7]=Table2[[#This Row],[Item Code]])*Table1[كمية7]+(Table1[كود8]=Table2[[#This Row],[Item Code]])*Table1[كمية8]+(Table1[كود9]=Table2[[#This Row],[Item Code]])*Table1[كمية9]+(Table1[كود10]=Table2[[#This Row],[Item Code]])*Table1[كمية10]) -> 0 | G38: 0
A39: 38 | F39: =SUMPRODUCT((Table1[كود1]=Table2[[#This Row],[Item Code]])*Table1[كمية1]+(Table1[كود2]=Table2[[#This Row],[Item Code]])*Table1[كمية2]+(Table1[كود3]=Table2[[#This Row],[Item Code]])*Table1[كمية3]+(Table1[كود4]=Table2[[#This Row],[Item Code]])*Table1[كمية4]+(Table1[كود5]=Table2[[#This Row],[Item Code]])*Table1[كمية5]+(Table1[كود6]=Table2[[#This Row],[Item Code]])*Table1[كمية6]+(Table1[كود7]=Table2[[#This Row],[Item Code]])*Table1[كمية7]+(Table1[كود8]=Table2[[#This Row],[Item Code]])*Table1[كمية8]+(Table1[كود9]=Table2[[#This Row],[Item Code]])*Table1[كمية9]+(Table1[كود10]=Table2[[#This Row],[Item Code]])*Table1[كمية10]) -> 0 | G39: 0
A40: 39 | F40: =SUMPRODUCT((Table1[كود1]=Table2[[#This Row],[Item Code]])*Table1[كمية1]+(Table1[كود2]=Table2[[#This Row],[Item Code]])*Table1[كمية2]+(Table1[كود3]=Table2[[#This Row],[Item Code]])*Table1[كمية3]+(Table1[كود4]=Table2[[#This Row],[Item Code]])*Table1[كمية4]+(Table1[كود5]=Table2[[#This Row],[Item Code]])*Table1[كمية5]+(Table1[كود6]=Table2[[#This Row],[Item Code]])*Table1[كمية6]+(Table1[كود7]=Table2[[#This Row],[Item Code]])*Table1[كمية7]+(Table1[كود8]=Table2[[#This Row],[Item Code]])*Table1[كمية8]+(Table1[كود9]=Table2[[#This Row],[Item Code]])*Table1[كمية9]+(Table1[كود10]=Table2[[#This Row],[Item Code]])*Table1[كمية10]) -> 0 | G40: 0
A41: 40 | F41: =SUMPRODUCT((Table1[كود1]=Table2[[#This Row],[Item Code]])*Table1[كمية1]+(Table1[كود2]=Table2[[#This Row],[Item Code]])*Table1[كمية2]+(Table1[كود3]=Table2[[#This Row],[Item Code]])*Table1[كمية3]+(Table1[كود4]=Table2[[#This Row],[Item Code]])*Table1[كمية4]+(Table1[كود5]=Table2[[#This Row],[Item Code]])*Table1[كمية5]+(Table1[كود6]=Table2[[#This Row],[Item Code]])*Table1[كمية6]+(Table1[كود7]=Table2[[#This Row],[Item Code]])*Table1[كمية7]+(Table1[كود8]=Table2[[#This Row],[Item Code]])*Table1[كمية8]+(Table1[كود9]=Table2[[#This Row],[Item Code]])*Table1[كمية9]+(Table1[كود10]=Table2[[#This Row],[Item Code]])*Table1[كمية10]) -> 0 | G41: 0
A42: 41 | F42: =SUMPRODUCT((Table1[كود1]=Table2[[#This Row],[Item Code]])*Table1[كمية1]+(Table1[كود2]=Table2[[#This Row],[Item Code]])*Table1[كمية2]+(Table1[كود3]=Table2[[#This Row],[Item Code]])*Table1[كمية3]+(Table1[كود4]=Table2[[#This Row],[Item Code]])*Table1[كمية4]+(Table1[كود5]=Table2[[#This Row],[Item Code]])*Table1[كمية5]+(Table1[كود6]=Table2[[#This Row],[Item Code]])*Table1[كمية6]+(Table1[كود7]=Table2[[#This Row],[Item Code]])*Table1[كمية7]+(Table1[كود8]=Table2[[#This Row],[Item Code]])*Table1[كمية8]+(Table1[كود9]=Table2[[#This Row],[Item Code]])*Table1[كمية9]+(Table1[كود10]=Table2[[#This Row],[Item Code]])*Table1[كمية10]) -> 0 | G42: 0
A43: 42 | F43: =SUMPRODUCT((Table1[كود1]=Table2[[#This Row],[Item Code]])*Table1[كمية1]+(Table1[كود2]=Table2[[#This Row],[Item Code]])*Table1[كمية2]+(Table1[كود3]=Table2[[#This Row],[Item Code]])*Table1[كمية3]+(Table1[كود4]=Table2[[#This Row],[Item Code]])*Table1[كمية4]+(Table1[كود5]=Table2[[#This Row],[Item Code]])*Table1[كمية5]+(Table1[كود6]=Table2[[#This Row],[Item Code]])*Table1[كمية6]+(Table1[كود7]=Table2[[#This Row],[Item Code]])*Table1[كمية7]+(Table1[كود8]=Table2[[#This Row],[Item Code]])*Table1[كمية8]+(Table1[كود9]=Table2[[#This Row],[Item Code]])*Table1[كمية9]+(Table1[كود10]=Table2[[#This Row],[Item Code]])*Table1[كمية10]) -> 0 | G43: 0
A44: 43 | F44: =SUMPRODUCT((Table1[كود1]=Table2[[#This Row],[Item Code]])*Table1[كمية1]+(Table1[كود2]=Table2[[#This Row],[Item Code]])*Table1[كمية2]+(Table1[كود3]=Table2[[#This Row],[Item Code]])*Table1[كمية3]+(Table1[كود4]=Table2[[#This Row],[Item Code]])*Table1[كمية4]+(Table1[كود5]=Table2[[#This Row],[Item Code]])*Table1[كمية5]+(Table1[كود6]=Table2[[#This Row],[Item Code]])*Table1[كمية6]+(Table1[كود7]=Table2[[#This Row],[Item Code]])*Table1[كمية7]+(Table1[كود8]=Table2[[#This Row],[Item Code]])*Table1[كمية8]+(Table1[كود9]=Table2[[#This Row],[Item Code]])*Table1[كمية9]+(Table1[كود10]=Table2[[#This Row],[Item Code]])*Table1[كمية10]) -> 0 | G44: 0
A45: 44 | F45: =SUMPRODUCT((Table1[كود1]=Table2[[#This Row],[Item Code]])*Table1[كمية1]+(Table1[كود2]=Table2[[#This Row],[Item Code]])*Table1[كمية2]+(Table1[كود3]=Table2[[#This Row],[Item Code]])*Table1[كمية3]+(Table1[كود4]=Table2[[#This Row],[Item Code]])*Table1[كمية4]+(Table1[كود5]=Table2[[#This Row],[Item Code]])*Table1[كمية5]+(Table1[كود6]=Table2[[#This Row],[Item Code]])*Table1[كمية6]+(Table1[كود7]=Table2[[#This Row],[Item Code]])*Table1[كمية7]+(Table1[كود8]=Table2[[#This Row],[Item Code]])*Table1[كمية8]+(Table1[كود9]=Table2[[#This Row],[Item Code]])*Table1[كمية9]+(Table1[كود10]=Table2[[#This Row],[Item Code]])*Table1[كمية10]) -> 0 | G45: 0
A46: 45 | F46: =SUMPRODUCT((Table1[كود1]=Table2[[#This Row],[Item Code]])*Table1[كمية1]+(Table1[كود2]=Table2[[#This Row],[Item Code]])*Table1[كمية2]+(Table1[كود3]=Table2[[#This Row],[Item Code]])*Table1[كمية3]+(Table1[كود4]=Table2[[#This Row],[Item Code]])*Table1[كمية4]+(Table1[كود5]=Table2[[#This Row],[Item Code]])*Table1[كمية5]+(Table1[كود6]=Table2[[#This Row],[Item Code]])*Table1[كمية6]+(Table1[كود7]=Table2[[#This Row],[Item Code]])*Table1[كمية7]+(Table1[كود8]=Table2[[#This Row],[Item Code]])*Table1[كمية8]+(Table1[كود9]=Table2[[#This Row],[Item Code]])*Table1[كمية9]+(Table1[كود10]=Table2[[#This Row],[Item Code]])*Table1[كمية10]) -> 0 | G46: 0
A47: 46 | F47: =SUMPRODUCT((Table1[كود1]=Table2[[#This Row],[Item Code]])*Table1[كمية1]+(Table1[كود2]=Table2[[#This Row],[Item Code]])*Table1[كمية2]+(Table1[كود3]=Table2[[#This Row],[Item Code]])*Table1[كمية3]+(Table1[كود4]=Table2[[#This Row],[Item Code]])*Table1[كمية4]+(Table1[كود5]=Table2[[#This Row],[Item Code]])*Table1[كمية5]+(Table1[كود6]=Table2[[#This Row],[Item Code]])*Table1[كمية6]+(Table1[كود7]=Table2[[#This Row],[Item Code]])*Table1[كمية7]+(Table1[كود8]=Table2[[#This Row],[Item Code]])*Table1[كمية8]+(Table1[كود9]=Table2[[#This Row],[Item Code]])*Table1[كمية9]+(Table1[كود10]=Table2[[#This Row],[Item Code]])*Table1[كمية10]) -> 0 | G47: 0
A48: 47 | F48: =SUMPRODUCT((Table1[كود1]=Table2[[#This Row],[Item Code]])*Table1[كمية1]+(Table1[كود2]=Table2[[#This Row],[Item Code]])*Table1[كمية2]+(Table1[كود3]=Table2[[#This Row],[Item Code]])*Table1[كمية3]+(Table1[كود4]=Table2[[#This Row],[Item Code]])*Table1[كمية4]+(Table1[كود5]=Table2[[#This Row],[Item Code]])*Table1[كمية5]+(Table1[كود6]=Table2[[#This Row],[Item Code]])*Table1[كمية6]+(Table1[كود7]=Table2[[#This Row],[Item Code]])*Table1[كمية7]+(Table1[كود8]=Table2[[#This Row],[Item Code]])*Table1[كمية8]+(Table1[كود9]=Table2[[#This Row],[Item Code]])*Table1[كمية9]+(Table1[كود10]=Table2[[#This Row],[Item Code]])*Table1[كمية10]) -> 0 | G48: 0
A49: 48 | F49: =SUMPRODUCT((Table1[كود1]=Table2[[#This Row],[Item Code]])*Table1[كمية1]+(Table1[كود2]=Table2[[#This Row],[Item Code]])*Table1[كمية2]+(Table1[كود3]=Table2[[#This Row],[Item Code]])*Table1[كمية3]+(Table1[كود4]=Table2[[#This Row],[Item Code]])*Table1[كمية4]+(Table1[كود5]=Table2[[#This Row],[Item Code]])*Table1[كمية5]+(Table1[كود6]=Table2[[#This Row],[Item Code]])*Table1[كمية6]+(Table1[كود7]=Table2[[#This Row],[Item Code]])*Table1[كمية7]+(Table1[كود8]=Table2[[#This Row],[Item Code]])*Table1[كمية8]+(Table1[كود9]=Table2[[#This Row],[Item Code]])*Table1[كمية9]+(Table1[كود10]=Table2[[#This Row],[Item Code]])*Table1[كمية10]) -> 0 | G49: 0
A50: 49 | F50: =SUMPRODUCT((Table1[كود1]=Table2[[#This Row],[Item Code]])*Table1[كمية1]+(Table1[كود2]=Table2[[#This Row],[Item Code]])*Table1[كمية2]+(Table1[كود3]=Table2[[#This Row],[Item Code]])*Table1[كمية3]+(Table1[كود4]=Table2[[#This Row],[Item Code]])*Table1[كمية4]+(Table1[كود5]=Table2[[#This Row],[Item Code]])*Table1[كمية5]+(Table1[كود6]=Table2[[#This Row],[Item Code]])*Table1[كمية6]+(Table1[كود7]=Table2[[#This Row],[Item Code]])*Table1[كمية7]+(Table1[كود8]=Table2[[#This Row],[Item Code]])*Table1[كمية8]+(Table1[كود9]=Table2[[#This Row],[Item Code]])*Table1[كمية9]+(Table1[كود10]=Table2[[#This Row],[Item Code]])*Table1[كمية10]) -> 0 | G50: 0
A51: 50 | F51: =SUMPRODUCT((Table1[كود1]=Table2[[#This Row],[Item Code]])*Table1[كمية1]+(Table1[كود2]=Table2[[#This Row],[Item Code]])*Table1[كمية2]+(Table1[كود3]=Table2[[#This Row],[Item Code]])*Table1[كمية3]+(Table1[كود4]=Table2[[#This Row],[Item Code]])*Table1[كمية4]+(Table1[كود5]=Table2[[#This Row],[Item Code]])*Table1[كمية5]+(Table1[كود6]=Table2[[#This Row],[Item Code]])*Table1[كمية6]+(Table1[كود7]=Table2[[#This Row],[Item Code]])*Table1[كمية7]+(Table1[كود8]=Table2[[#This Row],[Item Code]])*Table1[كمية8]+(Table1[كود9]=Table2[[#This Row],[Item Code]])*Table1[كمية9]+(Table1[كود10]=Table2[[#This Row],[Item Code]])*Table1[كمية10]) -> 0 | G51: 0
A52: 51 | F52: =SUMPRODUCT((Table1[كود1]=Table2[[#This Row],[Item Code]])*Table1[كمية1]+(Table1[كود2]=Table2[[#This Row],[Item Code]])*Table1[كمية2]+(Table1[كود3]=Table2[[#This Row],[Item Code]])*Table1[كمية3]+(Table1[كود4]=Table2[[#This Row],[Item Code]])*Table1[كمية4]+(Table1[كود5]=Table2[[#This Row],[Item Code]])*Table1[كمية5]+(Table1[كود6]=Table2[[#This Row],[Item Code]])*Table1[كمية6]+(Table1[كود7]=Table2[[#This Row],[Item Code]])*Table1[كمية7]+(Table1[كود8]=Table2[[#This Row],[Item Code]])*Table1[كمية8]+(Table1[كود9]=Table2[[#This Row],[Item Code]])*Table1[كمية9]+(Table1[كود10]=Table2[[#This Row],[Item Code]])*Table1[كمية10]) -> 0 | G52: 0
A53: 52 | F53: =SUMPRODUCT((Table1[كود1]=Table2[[#This Row],[Item Code]])*Table1[كمية1]+(Table1[كود2]=Table2[[#This Row],[Item Code]])*Table1[كمية2]+(Table1[كود3]=Table2[[#This Row],[Item Code]])*Table1[كمية3]+(Table1[كود4]=Table2[[#This Row],[Item Code]])*Table1[كمية4]+(Table1[كود5]=Table2[[#This Row],[Item Code]])*Table1[كمية5]+(Table1[كود6]=Table2[[#This Row],[Item Code]])*Table1[كمية6]+(Table1[كود7]=Table2[[#This Row],[Item Code]])*Table1[كمية7]+(Table1[كود8]=Table2[[#This Row],[Item Code]])*Table1[كمية8]+(Table1[كود9]=Table2[[#This Row],[Item Code]])*Table1[كمية9]+(Table1[كود10]=Table2[[#This Row],[Item Code]])*Table1[كمية10]) -> 0 | G53: 0
A54: 53 | F54: =SUMPRODUCT((Table1[كود1]=Table2[[#This Row],[Item Code]])*Table1[كمية1]+(Table1[كود2]=Table2[[#This Row],[Item Code]])*Table1[كمية2]+(Table1[كود3]=Table2[[#This Row],[Item Code]])*Table1[كمية3]+(Table1[كود4]=Table2[[#This Row],[Item Code]])*Table1[كمية4]+(Table1[كود5]=Table2[[#This Row],[Item Code]])*Table1[كمية5]+(Table1[كود6]=Table2[[#This Row],[Item Code]])*Table1[كمية6]+(Table1[كود7]=Table2[[#This Row],[Item Code]])*Table1[كمية7]+(Table1[كود8]=Table2[[#This Row],[Item Code]])*Table1[كمية8]+(Table1[كود9]=Table2[[#This Row],[Item Code]])*Table1[كمية9]+(Table1[كود10]=Table2[[#This Row],[Item Code]])*Table1[كمية10]) -> 0 | G54: 0
A55: 54 | F55: =SUMPRODUCT((Table1[كود1]=Table2[[#This Row],[Item Code]])*Table1[كمية1]+(Table1[كود2]=Table2[[#This Row],[Item Code]])*Table1[كمية2]+(Table1[كود3]=Table2[[#This Row],[Item Code]])*Table1[كمية3]+(Table1[كود4]=Table2[[#This Row],[Item Code]])*Table1[كمية4]+(Table1[كود5]=Table2[[#This Row],[Item Code]])*Table1[كمية5]+(Table1[كود6]=Table2[[#This Row],[Item Code]])*Table1[كمية6]+(Table1[كود7]=Table2[[#This Row],[Item Code]])*Table1[كمية7]+(Table1[كود8]=Table2[[#This Row],[Item Code]])*Table1[كمية8]+(Table1[كود9]=Table2[[#This Row],[Item Code]])*Table1[كمية9]+(Table1[كود10]=Table2[[#This Row],[Item Code]])*Table1[كمية10]) -> 0 | G55: 0
A56: 55 | F56: =SUMPRODUCT((Table1[كود1]=Table2[[#This Row],[Item Code]])*Table1[كمية1]+(Table1[كود2]=Table2[[#This Row],[Item Code]])*Table1[كمية2]+(Table1[كود3]=Table2[[#This Row],[Item Code]])*Table1[كمية3]+(Table1[كود4]=Table2[[#This Row],[Item Code]])*Table1[كمية4]+(Table1[كود5]=Table2[[#This Row],[Item Code]])*Table1[كمية5]+(Table1[كود6]=Table2[[#This Row],[Item Code]])*Table1[كمية6]+(Table1[كود7]=Table2[[#This Row],[Item Code]])*Table1[كمية7]+(Table1[كود8]=Table2[[#This Row],[Item Code]])*Table1[كمية8]+(Table1[كود9]=Table2[[#This Row],[Item Code]])*Table1[كمية9]+(Table1[كود10]=Table2[[#This Row],[Item Code]])*Table1[كمية10]) -> 0 | G56: 0
A57: 56 | F57: =SUMPRODUCT((Table1[كود1]=Table2[[#This Row],[Item Code]])*Table1[كمية1]+(Table1[كود2]=Table2[[#This Row],[Item Code]])*Table1[كمية2]+(Table1[كود3]=Table2[[#This Row],[Item Code]])*Table1[كمية3]+(Table1[كود4]=Table2[[#This Row],[Item Code]])*Table1[كمية4]+(Table1[كود5]=Table2[[#This Row],[Item Code]])*Table1[كمية5]+(Table1[كود6]=Table2[[#This Row],[Item Code]])*Table1[كمية6]+(Table1[كود7]=Table2[[#This Row],[Item Code]])*Table1[كمية7]+(Table1[كود8]=Table2[[#This Row],[Item Code]])*Table1[كمية8]+(Table1[كود9]=Table2[[#This Row],[Item Code]])*Table1[كمية9]+(Table1[كود10]=Table2[[#This Row],[Item Code]])*Table1[كمية10]) -> 0 | G57: 0
A58: 57 | F58: =SUMPRODUCT((Table1[كود1]=Table2[[#This Row],[Item Code]])*Table1[كمية1]+(Table1[كود2]=Table2[[#This Row],[Item Code]])*Table1[كمية2]+(Table1[كود3]=Table2[[#This Row],[Item Code]])*Table1[كمية3]+(Table1[كود4]=Table2[[#This Row],[Item Code]])*Table1[كمية4]+(Table1[كود5]=Table2[[#This Row],[Item Code]])*Table1[كمية5]+(Table1[كود6]=Table2[[#This Row],[Item Code]])*Table1[كمية6]+(Table1[كود7]=Table2[[#This Row],[Item Code]])*Table1[كمية7]+(Table1[كود8]=Table2[[#This Row],[Item Code]])*Table1[كمية8]+(Table1[كود9]=Table2[[#This Row],[Item Code]])*Table1[كمية9]+(Table1[كود10]=Table2[[#This Row],[Item Code]])*Table1[كمية10]) -> 0 | G58: 0
A59: 58 | F59: =SUMPRODUCT((Table1[كود1]=Table2[[#This Row],[Item Code]])*Table1[كمية1]+(Table1[كود2]=Table2[[#This Row],[Item Code]])*Table1[كمية2]+(Table1[كود3]=Table2[[#This Row],[Item Code]])*Table1[كمية3]+(Table1[كود4]=Table2[[#This Row],[Item Code]])*Table1[كمية4]+(Table1[كود5]=Table2[[#This Row],[Item Code]])*Table1[كمية5]+(Table1[كود6]=Table2[[#This Row],[Item Code]])*Table1[كمية6]+(Table1[كود7]=Table2[[#This Row],[Item Code]])*Table1[كمية7]+(Table1[كود8]=Table2[[#This Row],[Item Code]])*Table1[كمية8]+(Table1[كود9]=Table2[[#This Row],[Item Code]])*Table1[كمية9]+(Table1[كود10]=Table2[[#This Row],[Item Code]])*Table1[كمية10]) -> 0 | G59: 0
A60: 59 | F60: =SUMPRODUCT((Table1[كود1]=Table2[[#This Row],[Item Code]])*Table1[كمية1]+(Table1[كود2]=Table2[[#This Row],[Item Code]])*Table1[كمية2]+(Table1[كود3]=Table2[[#This Row],[Item Code]])*Table1[كمية3]+(Table1[كود4]=Table2[[#This Row],[Item Code]])*Table1[كمية4]+(Table1[كود5]=Table2[[#This Row],[Item Code]])*Table1[كمية5]+(Table1[كود6]=Table2[[#This Row],[Item Code]])*Table1[كمية6]+(Table1[كود7]=Table2[[#This Row],[Item Code]])*Table1[كمية7]+(Table1[كود8]=Table2[[#This Row],[Item Code]])*Table1[كمية8]+(Table1[كود9]=Table2[[#This Row],[Item Code]])*Table1[كمية9]+(Table1[كود10]=Table2[[#This Row],[Item Code]])*Table1[كمية10]) -> 0 | G60: 0
A61: 60 | F61: =SUMPRODUCT((Table1[كود1]=Table2[[#This Row],[Item Code]])*Table1[كمية1]+(Table1[كود2]=Table2[[#This Row],[Item Code]])*Table1[كمية2]+(Table1[كود3]=Table2[[#This Row],[Item Code]])*Table1[كمية3]+(Table1[كود4]=Table2[[#This Row],[Item Code]])*Table1[كمية4]+(Table1[كود5]=Table2[[#This Row],[Item Code]])*Table1[كمية5]+(Table1[كود6]=Table2[[#This Row],[Item Code]])*Table1[كمية6]+(Table1[كود7]=Table2[[#This Row],[Item Code]])*Table1[كمية7]+(Table1[كود8]=Table2[[#This Row],[Item Code]])*Table1[كمية8]+(Table1[كود9]=Table2[[#This Row],[Item Code]])*Table1[كمية9]+(Table1[كود10]=Table2[[#This Row],[Item Code]])*Table1[كمية10]) -> 0 | G61: 0

Sheet Invoice
B1: Sales Invoice | I1: =COUNTIF(Table1[invoice num],D2) -> 0 | K1: =ISNUMBER(D3) -> TRUE | L1: =ISTEXT(D4) -> FALSE | M1: =ISTEXT(D5) -> FALSE
B2: Inovoice Num: | D2: =IFERROR(INDEX(Table1[invoice num],COUNTA(Table1[invoice num]),0)+1,1) -> 2 | K2: رقم الفاتورة | L2: تاريخ | M2: اجمالي فاتورة | N2: ضريبه | O2: اجمالي الضريبه | P2: اجمالي بعد الضريبه | Q2: إسم العميل | R2: مسلسل 1 | S2: بيان1 | T2: كود1 | U2: كمية1 | V2: سعر1 | W2: إجمالي 1 | X2: مسلسل 2 | Y2: بيان2 | Z2: كود2 | AA2: كمية2 | AB2: سعر2 | AC2: إجمالي 2 | AD2: مسلسل 3 | AE2: بيان3 | AF2: كود3 | AG2: كمية3 | AH2: سعر3 | AI2: إجمالي 3 | AJ2: مسلسل 4 | AK2: بيان4 | AL2: كود4 | AM2: كمية4 | AN2: سعر4 | AO2: إجمالي 4 | AP2: مسلسل 5 | AQ2: بيان5 | AR2: كود5 | AS2: كمية5 | AT2: سعر5 | AU2: إجمالي 5 | AV2: مسلسل 6 | AW2: بيان6 | AX2: كود6 | AY2: كمية6 | AZ2: سعر6 | BA2: إجمالي 6 | BB2: مسلسل 7 | BC2: بيان7 | BD2: كود7 | BE2: كمية7 | BF2: سعر7 | BG2: إجمالي 7 | BH2: مسلسل 8 | BI2: بيان8 | BJ2: كود8 | BK2: كمية8 | BL2: سعر8 | BM2: إجمالي 8 | BN2: مسلسل 9 | BO2: بيان9 | BP2: كود9 | BQ2: كمية9 | BR2: سعر9 | BS2: إجمالي 9 | BT2: مسلسل 10 | BU2: بيان10 | BV2: كود10 | BW2: كمية10 | BX2: سعر10 | BY2: إجمالي 10 | BZ2: مكسب 1 | CA2: مكسب 2 | CB2: مكسب 3 | CC2: مكسب 4 | CD2: مكسب 5 | CE2: مكسب 6 | CF2: مكسب 7 | CG2: مكسب 8 | CH2: مكسب 9 | CI2: مكسب 10 | CJ2: رقم الموبيل
B3: Date : | D3: =TODAY() -> 2021-06-18 | K3: =IF(D2="","",D2) -> 2 | L3: =IF(D3="","",D3) -> 2021-06-18 | M3: =IF(G18="","",G18) -> 0 | N3: =IF(B19="","",B19) -> Previous balance | O3: =IF(G19="","",G19) -> 255 | P3: =IF(G20="","",G20) -> 255 | Q3: =IF(D4="","",D4) ->  | R3: =IF(B8="","",B8) -> 1 | S3: =IF(C8="","",C8) ->  | U3: =IF(E8="",0,E8) -> 0 | V3: 0 | W3: 0 | X3: =IF(B9="","",B9) -> 2 | Y3: =IF(C9="","",C9) ->  | AA3: =IF(E9="",0,E9) -> 0 | AB3: 0 | AC3: 0 | AD3: =IF(B10="","",B10) -> 3 | AE3: =IF(C10="","",C10) ->  | AG3: =IF(E10="",0,E10) -> 0 | AH3: 0 | AI3: 0 | AJ3: =IF(B11="","",B11) -> 4 | AK3: =IF(C11="","",C11) ->  | AM3: =IF(E11="",0,E11) -> 0 | AN3: 0 | AO3: 0 | AP3: =IF(B12="","",B12) -> 5 | AQ3: =IF(C12="","",C12) ->  | AS3: =IF(E12="",0,E12) -> 0 | AT3: 0 | AU3: 0 | AV3: =IF(B13="","",B13) ->  | AW3: =IF(C13="","",C13) ->  | AY3: =IF(E13="",0,E13) -> 0 | AZ3: 0 | BA3: 0 | BB3: =IF(B14="","",B14) ->  | BC3: =IF(C14="","",C14) ->  | BE3: =IF(E14="",0,E14) -> 0 | BF3: 0 | BG3: 0 | BH3: =IF(B15="","",B15) ->  | BI3: =IF(C15="","",C15) ->  | BK3: =IF(E15="",0,E15) -> 0 | BL3: 0 | BM3: 0 | BN3: =IF(B16="","",B16) ->  | BO3: =IF(C16="","",C16) ->  | BQ3: =IF(E16="",0,E16) -> 0 | BR3: 0 | BS3: 0 | BT3: =IF(B17="","",B17) ->  | BU3: =IF(C17="","",C17) ->  | BW3: =IF(E17="",0,E17) -> 0 | BX3: 0 | BY3: 0 | BZ3: =K8 -> 0 | CA3: =K9 -> 0 | CB3: =K10 -> 0 | CC3: =K11 -> 0 | CD3: =K12 -> 0 | CE3: =K13 -> 0 | CF3: =K14 -> 0 | CG3: =K15 -> 0 | CH3: =K16 -> 0 | CI3: =K17 -> 0 | CJ3: =IF(D5="","",D5) -> 
B4: Customer Name: | H4: 18
B5: Mobile Number :
B7: Nu. | C7: description | D7: Code | E7: Qua | F7: Price | G7: Total
B8: 1 | C8: =IFERROR(VLOOKUP(D8,Stock!$A:$B,2,0),"") ->  | F8: =IFERROR(VLOOKUP(D8,Stock!$A:$D,4,0),0) -> 0 | G8: =PRODUCT(F8,E8) -> 0 | K8: =(SUMIF(Table2[Item Code],Invoice!D8,Table2[Sales Price])-SUMIF(Table2[Item Code],Invoice!D8,Table2[cost price]))*E8 -> 0
B9: 2 | C9: =IFERROR(VLOOKUP(D9,Stock!$A:$B,2,0),"") ->  | F9: =IFERROR(VLOOKUP(D9,Stock!$A:$D,4,0),0) -> 0 | G9: 0 | K9: =(SUMIF(Table2[Item Code],Invoice!D9,Table2[Sales Price])-SUMIF(Table2[Item Code],Invoice!D9,Table2[cost price]))*E9 -> 0
B10: 3 | C10: =IFERROR(VLOOKUP(D10,Stock!$A:$B,2,0),"") ->  | F10: =IFERROR(VLOOKUP(D10,Stock!$A:$D,4,0),0) -> 0 | G10: 0 | K10: =(SUMIF(Table2[Item Code],Invoice!D10,Table2[Sales Price])-SUMIF(Table2[Item Code],Invoice!D10,Table2[cost price]))*E10 -> 0
B11: 4 | C11: =IFERROR(VLOOKUP(D11,Stock!$A:$B,2,0),"") ->  | F11: =IFERROR(VLOOKUP(D11,Stock!$A:$D,4,0),0) -> 0 | G11: 0 | K11: =(SUMIF(Table2[Item Code],Invoice!D11,Table2[Sales Price])-SUMIF(Table2[Item Code],Invoice!D11,Table2[cost price]))*E11 -> 0
B12: 5 | C12: =IFERROR(VLOOKUP(D12,Stock!$A:$B,2,0),"") ->  | F12: =IFERROR(VLOOKUP(D12,Stock!$A:$D,4,0),0) -> 0 | G12: 0 | K12: =(SUMIF(Table2[Item Code],Invoice!D12,Table2[Sales Price])-SUMIF(Table2[Item Code],Invoice!D12,Table2[cost price]))*E12 -> 0
B13: =IF(C13="","",B12+1) ->  | C13: =IFERROR(VLOOKUP(D13,Stock!$A:$B,2,0),"") ->  | F13: =IFERROR(VLOOKUP(D13,Stock!$A:$D,4,0),0) -> 0 | G13: =PRODUCT(F13,E13) -> 0 | K13: =(SUMIF(Table2[Item Code],Invoice!D13,Table2[Sales Price])-SUMIF(Table2[Item Code],Invoice!D13,Table2[cost price]))*E13 -> 0
C14: =IFERROR(VLOOKUP(D14,Stock!$A:$B,2,0),"") ->  | F14: =IFERROR(VLOOKUP(D14,Stock!$A:$D,4,0),0) -> 0 | G14: =PRODUCT(F14,E14) -> 0 | K14: =(SUMIF(Table2[Item Code],Invoice!D14,Table2[Sales Price])-SUMIF(Table2[Item Code],Invoice!D14,Table2[cost price]))*E14 -> 0
C15: =IFERROR(VLOOKUP(D15,Stock!$A:$B,2,0),"") ->  | F15: =IFERROR(VLOOKUP(D15,Stock!$A:$D,4,0),0) -> 0 | G15: 0 | K15: =(SUMIF(Table2[Item Code],Invoice!D15,Table2[Sales Price])-SUMIF(Table2[Item Code],Invoice!D15,Table2[cost price]))*E15 -> 0
C16: =IFERROR(VLOOKUP(D16,Stock!$A:$B,2,0),"") ->  | F16: =IFERROR(VLOOKUP(D16,Stock!$A:$D,4,0),0) -> 0 | G16: 0 | K16: =(SUMIF(Table2[Item Code],Invoice!D16,Table2[Sales Price])-SUMIF(Table2[Item Code],Invoice!D16,Table2[cost price]))*E16 -> 0
C17: =IFERROR(VLOOKUP(D17,Stock!$A:$B,2,0),"") ->  | F17: =IFERROR(VLOOKUP(D17,Stock!$A:$D,4,0),0) -> 0 | G17: 0 | K17: =(SUMIF(Table2[Item Code],Invoice!D17,Table2[Sales Price])-SUMIF(Table2[Item Code],Invoice!D17,Table2[cost price]))*E17 -> 0
B18: Total Invoice | G18: =SUM(G8:G17) -> 0
B19: Previous balance | G19: =IFERROR(VLOOKUP(H4,Customers!$A:$D,4,0),"") -> 255
B20: Total After Tax | G20: =G18+G19 -> 255

Sheet Print Invoice
B7: Sales Invoice
I8: رقم فاتوره خطأ
B10: Inovoice Num: | D10: 1 | N10: Inovoice Num: | P10: =IF(D10="","",D10) -> 1
B11: Date : | D11: 2021-06-18 | N11: Date : | P11: =IF(P10="","",IF(COUNTIF(Table1[invoice num],P10)<>1,I8,VLOOKUP(P10,Table1[],2,0))) -> 2021-06-18
B12: Customer Name: | D12: أمينة | N12: Customer Name: | P12: =IFERROR(IF(P10="","",VLOOKUP(P10,Table1[],7,0)),"") -> أمينة
B13: Mobile Number : | D13: 0000000000 | N13: Mobile Number : | P13: =IFERROR(IF(P10="","",VLOOKUP(P10,Table1[],78,0)),"") -> 0000000000
B15: Nu. | C15: description | D15: Code | E15: Qua | F15: Price | G15: Total | N15: Nu. | O15: description | P15: Code | Q15: Qua | R15: Price | S15: Total
B16: 1 | C16: شروال شبابى ملتون | D16: 6 | E16: 2 | F16: 55 | G16: =IF(PRODUCT(F16,E16)=0,"",PRODUCT(F16,E16)) -> 110 | N16: =IF(O16="","",1) -> 1 | O16: =IFERROR(IF(OR($D$10="",VLOOKUP($D$10,Table1[],9,0)=0),"",VLOOKUP($D$10,Table1[],9,0)),"") -> شروال شبابى ملتون | P16: =IFERROR(IF(OR($D$10="",VLOOKUP($D$10,Table1[],10,0)=0),"",VLOOKUP($D$10,Table1[],10,0)),"") -> 6 | Q16: =IFERROR(IF(OR($D$10="",VLOOKUP($D$10,Table1[],11,0)=0),"",VLOOKUP($D$10,Table1[],11,0)),"") -> 2 | R16: =IFERROR(IF(OR($D$10="",VLOOKUP($D$10,Table1[],12,0)=0),"",VLOOKUP($D$10,Table1[],12,0)),"") -> 55 | S16: =IFERROR(IF(OR($D$10="",VLOOKUP($D$10,Table1[],13,0)=0),"",VLOOKUP($D$10,Table1[],13,0)),"") -> 110 | T16: =IFERROR(IF(OR($D$10="",VLOOKUP($D$10,Table1[],68,0)=0),"",VLOOKUP($D$10,Table1[],68,0)),"") -> 36
B17: 2 | C17: تيشيرت بولو | D17: 19 | E17: 1 | F17: 65 | G17: 65 | N17: =IF(O17="","",N16+1) -> 2 | O17: =IFERROR(IF(OR($D$10="",VLOOKUP($D$10,Table1[],15,0)=0),"",VLOOKUP($D$10,Table1[],15,0)),"") -> تيشيرت بولو | P17: =IFERROR(IF(OR($D$10="",VLOOKUP($D$10,Table1[],16,0)=0),"",VLOOKUP($D$10,Table1[],16,0)),"") -> 19 | Q17: =IFERROR(IF(OR($D$10="",VLOOKUP($D$10,Table1[],17,0)=0),"",VLOOKUP($D$10,Table1[],17,0)),"") -> 1 | R17: =IFERROR(IF(OR($D$10="",VLOOKUP($D$10,Table1[],18,0)=0),"",VLOOKUP($D$10,Table1[],18,0)),"") -> 65 | S17: =IFERROR(IF(OR($D$10="",VLOOKUP($D$10,Table1[],19,0)=0),"",VLOOKUP($D$10,Table1[],19,0)),"") -> 65 | T17: =IFERROR(IF(OR($D$10="",VLOOKUP($D$10,Table1[],69,0)=0),"",VLOOKUP($D$10,Table1[],69,0)),"") -> 27
G18: =IF(PRODUCT(F18,E18)=0,"",PRODUCT(F18,E18)) ->  | N18: =IF(O18="","",N17+1) ->  | O18: =IFERROR(IF(OR($D$10="",VLOOKUP($D$10,Table1[],21,0)=0),"",VLOOKUP($D$10,Table1[],21,0)),"") ->  | P18: =IFERROR(IF(OR($D$10="",VLOOKUP($D$10,Table1[],22,0)=0),"",VLOOKUP($D$10,Table1[],22,0)),"") ->  | Q18: =IFERROR(IF(OR($D$10="",VLOOKUP($D$10,Table1[],23,0)=0),"",VLOOKUP($D$10,Table1[],23,0)),"") ->  | R18: =IFERROR(IF(OR($D$10="",VLOOKUP($D$10,Table1[],24,0)=0),"",VLOOKUP($D$10,Table1[],24,0)),"") ->  | S18: =IFERROR(IF(OR($D$10="",VLOOKUP($D$10,Table1[],25,0)=0),"",VLOOKUP($D$10,Table1[],25,0)),"") ->  | T18: =IFERROR(IF(OR($D$10="",VLOOKUP($D$10,Table1[],70,0)=0),"",VLOOKUP($D$10,Table1[],70,0)),"") -> 
G19: =IF(PRODUCT(F19,E19)=0,"",PRODUCT(F19,E19)) ->  | O19: =IFERROR(IF(OR($D$10="",VLOOKUP($D$10,Table1[],27,0)=0),"",VLOOKUP($D$10,Table1[],27,0)),"") ->  | P19: =IFERROR(IF(OR($D$10="",VLOOKUP($D$10,Table1[],28,0)=0),"",VLOOKUP($D$10,Table1[],28,0)),"") ->  | Q19: =IFERROR(IF(OR($D$10="",VLOOKUP($D$10,Table1[],29,0)=0),"",VLOOKUP($D$10,Table1[],29,0)),"") ->  | R19: =IFERROR(IF(OR($D$10="",VLOOKUP($D$10,Table1[],30,0)=0),"",VLOOKUP($D$10,Table1[],30,0)),"") ->  | S19: =IFERROR(IF(OR($D$10="",VLOOKUP($D$10,Table1[],31,0)=0),"",VLOOKUP($D$10,Table1[],31,0)),"") ->  | T19: =IFERROR(IF(OR($D$10="",VLOOKUP($D$10,Table1[],71,0)=0),"",VLOOKUP($D$10,Table1[],71,0)),"") -> 
O20: =IFERROR(IF(OR($D$10="",VLOOKUP($D$10,Table1[],33,0)=0),"",VLOOKUP($D$10,Table1[],33,0)),"") ->  | P20: =IFERROR(IF(OR($D$10="",VLOOKUP($D$10,Table1[],34,0)=0),"",VLOOKUP($D$10,Table1[],34,0)),"") ->  | Q20: =IFERROR(IF(OR($D$10="",VLOOKUP($D$10,Table1[],35,0)=0),"",VLOOKUP($D$10,Table1[],35,0)),"") ->  | R20: =IFERROR(IF(OR($D$10="",VLOOKUP($D$10,Table1[],36,0)=0),"",VLOOKUP($D$10,Table1[],36,0)),"") ->  | S20: =IFERROR(IF(OR($D$10="",VLOOKUP($D$10,Table1[],37,0)=0),"",VLOOKUP($D$10,Table1[],37,0)),"") ->  | T20: =IFERROR(IF(OR($D$10="",VLOOKUP($D$10,Table1[],72,0)=0),"",VLOOKUP($D$10,Table1[],72,0)),"") -> 
O21: =IFERROR(IF(OR($D$10="",VLOOKUP($D$10,Table1[],39,0)=0),"",VLOOKUP($D$10,Table1[],39,0)),"") ->  | P21: =IFERROR(IF(OR($D$10="",VLOOKUP($D$10,Table1[],40,0)=0),"",VLOOKUP($D$10,Table1[],40,0)),"") ->  | Q21: =IFERROR(IF(OR($D$10="",VLOOKUP($D$10,Table1[],41,0)=0),"",VLOOKUP($D$10,Table1[],41,0)),"") ->  | R21: =IFERROR(IF(OR($D$10="",VLOOKUP($D$10,Table1[],42,0)=0),"",VLOOKUP($D$10,Table1[],42,0)),"") ->  | S21: =IFERROR(IF(OR($D$10="",VLOOKUP($D$10,Table1[],43,0)=0),"",VLOOKUP($D$10,Table1[],43,0)),"") ->  | T21: =IFERROR(IF(OR($D$10="",VLOOKUP($D$10,Table1[],73,0)=0),"",VLOOKUP($D$10,Table1[],73,0)),"") -> 
O22: =IFERROR(IF(OR($D$10="",VLOOKUP($D$10,Table1[],45,0)=0),"",VLOOKUP($D$10,Table1[],45,0)),"") ->  | P22: =IFERROR(IF(OR($D$10="",VLOOKUP($D$10,Table1[],46,0)=0),"",VLOOKUP($D$10,Table1[],46,0)),"") ->  | Q22: =IFERROR(IF(OR($D$10="",VLOOKUP($D$10,Table1[],47,0)=0),"",VLOOKUP($D$10,Table1[],47,0)),"") ->  | R22: =IFERROR(IF(OR($D$10="",VLOOKUP($D$10,Table1[],48,0)=0),"",VLOOKUP($D$10,Table1[],48,0)),"") ->  | S22: =IFERROR(IF(OR($D$10="",VLOOKUP($D$10,Table1[],49,0)=0),"",VLOOKUP($D$10,Table1[],49,0)),"") ->  | T22: =IFERROR(IF(OR($D$10="",VLOOKUP($D$10,Table1[],74,0)=0),"",VLOOKUP($D$10,Table1[],74,0)),"") -> 
O23: =IFERROR(IF(OR($D$10="",VLOOKUP($D$10,Table1[],51,0)=0),"",VLOOKUP($D$10,Table1[],51,0)),"") ->  | P23: =IFERROR(IF(OR($D$10="",VLOOKUP($D$10,Table1[],52,0)=0),"",VLOOKUP($D$10,Table1[],52,0)),"") ->  | Q23: =IFERROR(IF(OR($D$10="",VLOOKUP($D$10,Table1[],53,0)=0),"",VLOOKUP($D$10,Table1[],53,0)),"") ->  | R23: =IFERROR(IF(OR($D$10="",VLOOKUP($D$10,Table1[],54,0)=0),"",VLOOKUP($D$10,Table1[],54,0)),"") ->  | S23: =IFERROR(IF(OR($D$10="",VLOOKUP($D$10,Table1[],55,0)=0),"",VLOOKUP($D$10,Table1[],55,0)),"") ->  | T23: =IFERROR(IF(OR($D$10="",VLOOKUP($D$10,Table1[],75,0)=0),"",VLOOKUP($D$10,Table1[],75,0)),"") -> 
O24: =IFERROR(IF(OR($D$10="",VLOOKUP($D$10,Table1[],57,0)=0),"",VLOOKUP($D$10,Table1[],57,0)),"") ->  | P24: =IFERROR(IF(OR($D$10="",VLOOKUP($D$10,Table1[],58,0)=0),"",VLOOKUP($D$10,Table1[],58,0)),"") ->  | Q24: =IFERROR(IF(OR($D$10="",VLOOKUP($D$10,Table1[],59,0)=0),"",VLOOKUP($D$10,Table1[],59,0)),"") ->  | R24: =IFERROR(IF(OR($D$10="",VLOOKUP($D$10,Table1[],60,0)=0),"",VLOOKUP($D$10,Table1[],60,0)),"") ->  | S24: =IFERROR(IF(OR($D$10="",VLOOKUP($D$10,Table1[],61,0)=0),"",VLOOKUP($D$10,Table1[],61,0)),"") ->  | T24: =IFERROR(IF(OR($D$10="",VLOOKUP($D$10,Table1[],76,0)=0),"",VLOOKUP($D$10,Table1[],76,0)),"") -> 
O25: =IFERROR(IF(OR($D$10="",VLOOKUP($D$10,Table1[],63,0)=0),"",VLOOKUP($D$10,Table1[],63,0)),"") ->  | P25: =IFERROR(IF(OR($D$10="",VLOOKUP($D$10,Table1[],64,0)=0),"",VLOOKUP($D$10,Table1[],64,0)),"") ->  | Q25: =IFERROR(IF(OR($D$10="",VLOOKUP($D$10,Table1[],65,0)=0),"",VLOOKUP($D$10,Table1[],65,0)),"") ->  | R25: =IFERROR(IF(OR($D$10="",VLOOKUP($D$10,Table1[],66,0)=0),"",VLOOKUP($D$10,Table1[],66,0)),"") ->  | S25: =IFERROR(IF(OR($D$10="",VLOOKUP($D$10,Table1[],67,0)=0),"",VLOOKUP($D$10,Table1[],67,0)),"") ->  | T25: =IFERROR(IF(OR($D$10="",VLOOKUP($D$10,Table1[],77,0)=0),"",VLOOKUP($D$10,Table1[],77,0)),"") -> 
B26: Total Invoice | G26: =SUM(G16:G25) -> 175 | N26: Total Invoice | S26: =IFERROR(IF(P10="",0,VLOOKUP(P10,Table1[],3,0)),0) -> 175
B27: Previous balance | N27: =IFERROR(IF(P10="","",VLOOKUP(P10,Table1[],4,0)),"") -> Previous balance | S27: =IFERROR(IF(P10="",0,VLOOKUP(P10,Table1[],5,0)),0) -> 255
B28: Total After Tax | G28: =G26+G27 -> 175 | N28: Total After Tax | S28: =IFERROR(IF(P10="",0,VLOOKUP(P10,Table1[],6,0)),0) -> 430
E32: =IFERROR((SUMIF(Table2[Item Code],$D$16,Table2[Sales Price])-SUMIF(Table2[Item Code],$D$16,Table2[cost price]))*$E$16,0) -> 36 | F32: =IFERROR((SUMIF(Table2[Item Code],$D$21,Table2[Sales Price])-SUMIF(Table2[Item Code],$D$21,Table2[cost price]))*$E$21,0) -> 0
E33: =IFERROR((SUMIF(Table2[Item Code],$D$17,Table2[Sales Price])-SUMIF(Table2[Item Code],$D$17,Table2[cost price]))*$E$17,0) -> 27 | F33: =IFERROR((SUMIF(Table2[Item Code],$D$22,Table2[Sales Price])-SUMIF(Table2[Item Code],$D$22,Table2[cost price]))*$E$22,0) -> 0
E34: =IFERROR((SUMIF(Table2[Item Code],$D$18,Table2[Sales Price])-SUMIF(Table2[Item Code],$D$18,Table2[cost price]))*$E$18,0) -> 0 | F34: =IFERROR((SUMIF(Table2[Item Code],$D$23,Table2[Sales Price])-SUMIF(Table2[Item Code],$D$23,Table2[cost price]))*$E$23,0) -> 0
E35: =IFERROR((SUMIF(Table2[Item Code],$D$19,Table2[Sales Price])-SUMIF(Table2[Item Code],$D$19,Table2[cost price]))*$E$19,0) -> 0 | F35: =IFERROR((SUMIF(Table2[Item Code],$D$24,Table2[Sales Price])-SUMIF(Table2[Item Code],$D$24,Table2[cost price]))*$E$24,0) -> 0
E36: =IFERROR((SUMIF(Table2[Item Code],$D$20,Table2[Sales Price])-SUMIF(Table2[Item Code],$D$20,Table2[cost price]))*$E$20,0) -> 0 | F36: =IFERROR((SUMIF(Table2[Item Code],$D$25,Table2[Sales Price])-SUMIF(Table2[Item Code],$D$25,Table2[cost price]))*$E$25,0) -> 0

Sheet Invoice Archive
A1: Nu. | B1: invoice num | C1: Date | D1: Total Invoice | E1: Previous balance | F1: Total Previous balance | G1: Total Balance | H1: Customer Name | I1: مسلسل 1 | J1: بيان1 | K1: كود1 | L1: كمية1 | M1: سعر1 | N1: إجمالي 1 | O1: مسلسل 2 | P1: بيان2 | Q1: كود2 | R1: كمية2 | S1: سعر2 | T1: إجمالي 2 | U1: مسلسل 3 | V1: بيان3 | W1: كود3 | X1: كمية3 | Y1: سعر3 | Z1: إجمالي 3 | AA1: مسلسل 4 | AB1: بيان4 | AC1: كود4 | AD1: كمية4 | AE1: سعر4 | AF1: إجمالي 4 | AG1: مسلسل 5 | AH1: بيان5 | AI1: كود5 | AJ1: كمية5 | AK1: سعر5 | AL1: إجمالي 5 | AM1: مسلسل 6 | AN1: بيان6 | AO1: كود6 | AP1: كمية6 | AQ1: سعر6 | AR1: إجمالي 6 | AS1: مسلسل 7 | AT1: بيان7 | AU1: كود7 | AV1: كمية7 | AW1: سعر7 | AX1: إجمالي 7 | AY1: مسلسل 8 | AZ1: بيان8 | BA1: كود8 | BB1: كمية8 | BC1: سعر8 | BD1: إجمالي 8 | BE1: مسلسل 9 | BF1: بيان9 | BG1: كود9 | BH1: كمية9 | BI1: سعر9 | BJ1: إجمالي 9 | BK1: مسلسل 10 | BL1: بيان10 | BM1: كود10 | BN1: كمية10 | BO1: سعر10 | BP1: إجمالي 10 | BQ1: مكسب 1 | BR1: مكسب 2 | BS1: مكسب 3 | BT1: مكسب 4 | BU1: مكسب 5 | BV1: مكسب 6 | BW1: مكسب 7 | BX1: مكسب 8 | BY1: مكسب 9 | BZ1: مكسب 10 | CA1: رقم التليفون | CC1: =MATCH('Print Invoice'!D10,Table1[invoice num],0)+1 -> 3 | CD1: ="B"&CC1 -> B3
B2: Total | C2: تاريخ | D2: =IFERROR(SUM(OFFSET(D1,2,0,COUNTA(Table1[invoice num])-1,1)),0) -> 175 | F2: =IFERROR(SUM(OFFSET(F1,2,0,COUNTA(Table1[invoice num])-1,1)),0) -> 255 | G2: =IFERROR(SUM(OFFSET(G1,2,0,COUNTA(Table1[invoice num])-1,1)),0) -> 430 | K2: 0 | L2: =0 -> 0 | M2: =SUMIF(Table1[كود1],B2,Table1[كمية1])+SUMIF(Table1[كود2],B2) -> 0 | R2: =0 -> 0 | X2: 0 | AC2: =0 -> 0 | AD2: =0 -> 0 | AI2: =0 -> 0 | AJ2: 0
B3: 1 | C3: 2021-06-18 | D3: 175 | E3: Previous balance | F3: 255 | G3: 430 | H3: أمينة | I3: 1 | J3: شروال شبابى ملتون | K3: 6 | L3: 2 | M3: 55 | N3: 110 | O3: 2 | P3: تيشيرت بولو | Q3: 19 | R3: 1 | S3: 65 | T3: 65 | U3: 3 | X3: 0 | Y3: 0 | Z3: 0 | AA3: 4 | AD3: 0 | AE3: 0 | AF3: 0 | AG3: 5 | AJ3: 0 | AK3: 0 | AL3: 0 | AP3: 0 | AQ3: 0 | AR3: 0 | AV3: 0 | AW3: 0 | AX3: 0 | BB3: 0 | BC3: 0 | BD3: 0 | BH3: 0 | BI3: 0 | BJ3: 0 | BN3: 0 | BO3: 0 | BP3: 0 | BQ3: 36 | BR3: 27 | BS3: 0 | BT3: 0 | BU3: 0 | BV3: 0 | BW3: 0 | BX3: 0 | BY3: 0 | BZ3: 0 | CA3: 0000000000
A11: =IF(B11="","",A10+1) -> 

Sheet Main Store
A1: Item Code | B1: Item Name | C1: cost price | D1: Sales Price | E1: رصيد اول | F1: المنصرف | G1: رصيد اخر | H1: Total cost price | I1: Total Sales Price | J1: Profit margin
A2: 01 | B2: =Table2[[#This Row],[Item Name]] -> تيشرت بيزك قطن | C2: 27 | D2: 37 | E2: =Table2[[#This Row],[‎Beginning inventory]] -> 238 | F2: =Table2[[#This Row],[out of stock]] -> 0 | G2: =E2-F2 -> 238 | H2: =C2*G2 -> 6426 | I2: =D2*G2 -> 8806 | J2: =I2-H2 -> 2380
A3: 02 | B3: =Table2[[#This Row],[Item Name]] -> تيشرت روزتا رياضى | C3: 27 | D3: 37 | E3: =Table2[[#This Row],[‎Beginning inventory]] -> 130 | F3: =Table2[[#This Row],[out of stock]] -> 0 | G3: =E3-F3 -> 130 | H3: =C3*G3 -> 3510 | I3: =D3*G3 -> 4810 | J3: =I3-H3 -> 1300
A4: 03 | B4: =Table2[[#This Row],[Item Name]] -> ترنج غطس | C4: 115 | D4: 155 | E4: =Table2[[#This Row],[‎Beginning inventory]] -> 16 | F4: =Table2[[#This Row],[out of stock]] -> 0 | G4: =E4-F4 -> 16 | H4: =C4*G4 -> 1840 | I4: =D4*G4 -> 2480 | J4: =I4-H4 -> 640
A5: 04 | B5: =Table2[[#This Row],[Item Name]] -> ترنج ميلتون m:2xl | D5: 95 | E5: =Table2[[#This Row],[‎Beginning inventory]] -> 0 | F5: =Table2[[#This Row],[out of stock]] -> 0 | G5: 0 | H5: 0 | I5: 0 | J5: 0
A6: 05 | B6: =Table2[[#This Row],[Item Name]] -> ترنج اطفال | D6: 60 | E6: =Table2[[#This Row],[‎Beginning inventory]] -> 0 | F6: =Table2[[#This Row],[out of stock]] -> 0 | G6: 0 | H6: 0 | I6: 0 | J6: 0
A7: 06 | B7: =Table2[[#This Row],[Item Name]] -> شروال شبابى ملتون | C7: 37 | D7: 50 | E7: =Table2[[#This Row],[‎Beginning inventory]] -> 92 | F7: =Table2[[#This Row],[out of stock]] -> 2 | G7: 90 | H7: 3330 | I7: 4500 | J7: 1170
A8: 07 | B8: =Table2[[#This Row],[Item Name]] -> شروال اولادى | C8: 25 | D8: 35 | E8: =Table2[[#This Row],[‎Beginning inventory]] -> 1 | F8: =Table2[[#This Row],[out of stock]] -> 0 | G8: 1 | H8: 25 | I8: 35 | J8: 10
A9: 08 | B9: =Table2[[#This Row],[Item Name]] -> تيشرت اطفال بيزك عادى | C9: 17 | D9: 23 | E9: =Table2[[#This Row],[‎Beginning inventory]] -> 249 | F9: =Table2[[#This Row],[out of stock]] -> 0 | G9: 249 | H9: 4233 | I9: 5727 | J9: 1494
A10: 09 | B10: =Table2[[#This Row],[Item Name]] -> تيشرت اولادى خروج | D10: 25 | E10: =Table2[[#This Row],[‎Beginning inventory]] -> 3 | F10: =Table2[[#This Row],[out of stock]] -> 0 | G10: 3 | H10: 0 | I10: 75 | J10: 75
A11: 10 | B11: =Table2[[#This Row],[Item Name]] -> شورت اطفال 2:8 | D11: 17 | E11: =Table2[[#This Row],[‎Beginning inventory]] -> 0 | F11: =Table2[[#This Row],[out of stock]] -> 0 | G11: 0 | H11: 0 | I11: 0 | J11: 0
A12: 11 | B12: =Table2[[#This Row],[Item Name]] -> برامودا شبابى | C12: 31 | D12: 38 | E12: =Table2[[#This Row],[‎Beginning inventory]] -> 0 | F12: =Table2[[#This Row],[out of stock]] -> 0 | G12: 0 | H12: 0 | I12: 0 | J12: 0
A13: 12 | B13: =Table2[[#This Row],[Item Name]] -> طقم بناتى برامودا | E13: =Table2[[#This Row],[‎Beginning inventory]] -> 0 | F13: =Table2[[#This Row],[out of stock]] -> 0 | G13: =E13-F13 -> 0 | H13: =C13*G13 -> 0 | I13: =D13*G13 -> 0 | J13: 0
A14: 13 | B14: =Table2[[#This Row],[Item Name]] -> تيشرت بناتى مطبوع | C14: 17 | D14: 23 | E14: =Table2[[#This Row],[‎Beginning inventory]] -> 16 | F14: =Table2[[#This Row],[out of stock]] -> 0 | G14: 16 | H14: 272 | I14: 368 | J14: 96
A15: 14 | B15: =Table2[[#This Row],[Item Name]] -> جاكت غطس | C15: 60 | D15: 75 | E15: =Table2[[#This Row],[‎Beginning inventory]] -> 12 | F15: =Table2[[#This Row],[out of stock]] -> 0 | G15: 12 | H15: 720 | I15: 900 | J15: 180
A16: 15 | B16: =Table2[[#This Row],[Item Name]] -> شروال جيشى | D16: 50 | E16: =Table2[[#This Row],[‎Beginning inventory]] -> 0 | F16: =Table2[[#This Row],[out of stock]] -> 0 | G16: 0 | H16: 0 | I16: 0 | J16: 0
A17: 16 | B17: =Table2[[#This Row],[Item Name]] -> شروال جيشى اولادى | C17: 30 | D17: 35 | E17: =Table2[[#This Row],[‎Beginning inventory]] -> 0 | F17: =Table2[[#This Row],[out of stock]] -> 0 | G17: 0 | H17: 0 | I17: 0 | J17: 0
A18: 17 | B18: =Table2[[#This Row],[Item Name]] -> تيشرت كلفن | E18: =Table2[[#This Row],[‎Beginning inventory]] -> 0 | F18: =Table2[[#This Row],[out of stock]] -> 0 | G18: 0 | H18: 0 | I18: 0 | J18: 0
A19: 18 | B19: =Table2[[#This Row],[Item Name]] -> شروال حريمى | C19: 37 | D19: 50 | E19: =Table2[[#This Row],[‎Beginning inventory]] -> 16 | F19: =Table2[[#This Row],[out of stock]] -> 0 | G19: 16 | H19: 592 | I19: 800 | J19: 208
A20: 19 | B20: =Table2[[#This Row],[Item Name]] -> تيشيرت بولو | C20: 38 | D20: 50 | E20: =Table2[[#This Row],[‎Beginning inventory]] -> 11 | F20: =Table2[[#This Row],[out of stock]] -> 1 | G20: 10 | H20: 380 | I20: 500 | J20: 120
A21: 20 | B21: =Table2[[#This Row],[Item Name]] -> تيشرت قطن لاكوست | C21: 28 | D21: 43 | E21: =Table2[[#This Row],[‎Beginning inventory]] -> 353 | F21: =Table2[[#This Row],[out of stock]] -> 0 | G21: 353 | H21: 9884 | I21: 15179 | J21: 5295
A22: 21 | B22: =Table2[[#This Row],[Item Name]] -> طقم اطفال 2:12 | C22: 16 | D22: 35 | E22: =Table2[[#This Row],[‎Beginning inventory]] -> 42 | F22: =Table2[[#This Row],[out of stock]] -> 0 | G22: 42 | H22: 672 | I22: 1470 | J22: 798
A23: 22 | B23: =Table2[[#This Row],[Item Name]] -> شورت | C23: 27 | D23: 32 | E23: =Table2[[#This Row],[‎Beginning inventory]] -> 29 | F23: =Table2[[#This Row],[out of stock]] -> 0 | G23: 29 | H23: 783 | I23: 928 | J23: 145
A24: 23 | B24: =Table2[[#This Row],[Item Name]] -> طقم شبابي ملتون | C24: 64 | D24: 85 | E24: =Table2[[#This Row],[‎Beginning inventory]] -> 45 | F24: =Table2[[#This Row],[out of stock]] -> 0 | G24: 45 | H24: 2880 | I24: 3825 | J24: 945
A25: 24 | B25: =Table2[[#This Row],[Item Name]] -> بنطلون غطس | C25: 55 | D25: 80 | E25: =Table2[[#This Row],[‎Beginning inventory]] -> 1 | F25: =Table2[[#This Row],[out of stock]] -> 0 | G25: 1 | H25: 55 | I25: 80 | J25: 25
A26: 25 | B26: =Table2[[#This Row],[Item Name]] -> بنطلون ملتون 3 X | C26: 37 | D26: 50 | E26: =Table2[[#This Row],[‎Beginning inventory]] -> 13 | F26: =Table2[[#This Row],[out of stock]] -> 0 | G26: 13 | H26: 481 | I26: 650 | J26: 169
A27: 26 | B27: =Table2[[#This Row],[Item Name]] -> شروال اطفال 2:8 | D27: 31 | E27: =Table2[[#This Row],[‎Beginning inventory]] -> 0 | F27: =Table2[[#This Row],[out of stock]] -> 0 | G27: 0 | H27: 0 | I27: 0 | J27: 0
A28: 27 | B28: =Table2[[#This Row],[Item Name]] -> شروال اطفال 10:14 | D28: 35 | E28: =Table2[[#This Row],[‎Beginning inventory]] -> 0 | F28: =Table2[[#This Row],[out of stock]] -> 0 | G28: 0 | H28: 0 | I28: 0 | J28: 0
A29: 28 | B29: شروال اطفال مقاسات مختلفة | D29: 35 | E29: =Table2[[#This Row],[‎Beginning inventory]] -> 22 | F29: =Table2[[#This Row],[out of stock]] -> 0 | G29: 22 | H29: 0 | I29: 770 | J29: 770
A30: 29 | B30: شروال اطفال مقاس S | D30: 37 | E30: =Table2[[#This Row],[‎Beginning inventory]] -> 56 | F30: =Table2[[#This Row],[out of stock]] -> 0 | G30: 56 | H30: 0 | I30: 2072 | J30: 2072
A31: 30 | B31: =Table2[[#This Row],[Item Name]] ->  | E31: =Table2[[#This Row],[‎Beginning inventory]] -> 0 | F31: =Table2[[#This Row],[out of stock]] -> 0 | G31: 0 | H31: 0 | I31: 0 | J31: 0
A32: 31 | B32: =Table2[[#This Row],[Item Name]] ->  | E32: =Table2[[#This Row],[‎Beginning inventory]] -> 0 | F32: =Table2[[#This Row],[out of stock]] -> 0 | G32: 0 | H32: 0 | I32: 0 | J32: 0
A33: 32 | B33: =Table2[[#This Row],[Item Name]] ->  | E33: =Table2[[#This Row],[‎Beginning inventory]] -> 0 | F33: =Table2[[#This Row],[out of stock]] -> 0 | G33: 0 | H33: 0 | I33: 0 | J33: 0
A34: 33 | B34: =Table2[[#This Row],[Item Name]] ->  | E34: =Table2[[#This Row],[‎Beginning inventory]] -> 0 | F34: =Table2[[#This Row],[out of stock]] -> 0 | G34: 0 | H34: 0 | I34: 0 | J34: 0
A35: 34 | B35: =Table2[[#This Row],[Item Name]] ->  | E35: =Table2[[#This Row],[‎Beginning inventory]] -> 0 | F35: =Table2[[#This Row],[out of stock]] -> 0 | G35: 0 | H35: 0 | I35: 0 | J35: 0
A36: 35 | B36: =Table2[[#This Row],[Item Name]] ->  | E36: =Table2[[#This Row],[‎Beginning inventory]] -> 0 | F36: =Table2[[#This Row],[out of stock]] -> 0 | G36: 0 | H36: 0 | I36: 0 | J36: 0
A37: 36 | B37: =Table2[[#This Row],[Item Name]] ->  | E37: =Table2[[#This Row],[‎Beginning inventory]] -> 0 | F37: =Table2[[#This Row],[out of stock]] -> 0 | G37: 0 | H37: 0 | I37: 0 | J37: 0
A38: 37 | B38: =Table2[[#This Row],[Item Name]] ->  | E38: =Table2[[#This Row],[‎Beginning inventory]] -> 0 | F38: =Table2[[#This Row],[out of stock]] -> 0 | G38: 0 | H38: 0 | I38: 0 | J38: 0
A39: 38 | E39: =Table2[[#This Row],[‎Beginning inventory]] -> 0 | F39: =Table2[[#This Row],[out of stock]] -> 0 | G39: 0 | H39: 0 | I39: 0 | J39: 0
A40: 39 | E40: =Table2[[#This Row],[‎Beginning inventory]] -> 0 | F40: =Table2[[#This Row],[out of stock]] -> 0 | G40: 0 | H40: 0 | I40: 0 | J40: 0
A41: 40 | E41: =Table2[[#This Row],[‎Beginning inventory]] -> 0 | F41: =Table2[[#This Row],[out of stock]] -> 0 | G41: 0 | H41: 0 | I41: 0 | J41: 0
A42: 41 | E42: =Table2[[#This Row],[‎Beginning inventory]] -> 0 | F42: =Table2[[#This Row],[out of stock]] -> 0 | G42: 0 | H42: 0 | I42: 0 | J42: 0
A43: 42 | E43: =Table2[[#This Row],[‎Beginning inventory]] -> 0 | F43: =Table2[[#This Row],[out of stock]] -> 0 | G43: 0 | H43: 0 | I43: 0 | J43: 0
A44: 43 | E44: =Table2[[#This Row],[‎Beginning inventory]] -> 0 | F44: =Table2[[#This Row],[out of stock]] -> 0 | G44: 0 | H44: 0 | I44: 0 | J44: 0
A45: 44 | E45: =Table2[[#This Row],[‎Beginning inventory]] -> 0 | F45: =Table2[[#This Row],[out of stock]] -> 0 | G45: 0 | H45: 0 | I45: 0 | J45: 0
A46: 45 | E46: =Table2[[#This Row],[‎Beginning inventory]] -> 0 | F46: =Table2[[#This Row],[out of stock]] -> 0 | G46: 0 | H46: 0 | I46: 0 | J46: 0
A47: 46 | E47: =Table2[[#This Row],[‎Beginning inventory]] -> 0 | F47: =Table2[[#This Row],[out of stock]] -> 0 | G47: 0 | H47: 0 | I47: 0 | J47: 0
A48: 47 | E48: =Table2[[#This Row],[‎Beginning inventory]] -> 0 | F48: =Table2[[#This Row],[out of stock]] -> 0 | G48: 0 | H48: 0 | I48: 0 | J48: 0
A49: 48 | E49: =Table2[[#This Row],[‎Beginning inventory]] -> 0 | F49: =Table2[[#This Row],[out of stock]] -> 0 | G49: 0 | H49: 0 | I49: 0 | J49: 0
A50: 49 | E50: =Table2[[#This Row],[‎Beginning inventory]] -> 0 | F50: =Table2[[#This Row],[out of stock]] -> 0 | G50: 0 | H50: 0 | I50: 0 | J50: 0
A51: 50 | E51: =Table2[[#This Row],[‎Beginning inventory]] -> 0 | F51: =Table2[[#This Row],[out of stock]] -> 0 | G51: 0 | H51: 0 | I51: 0 | J51: 0

Sheet Customers
A1: Sn. | B1: Name | C1: Mob. | D1: Previous debit balance
A2: 1 | B2: عمرو فتحى | D2: =[2]العملاء!A3 -> 1351
A3: 2 | B3: مصطفى معروف | D3: =[2]العملاء!A4 -> 1375
A4: 3 | B4: ضياء فتحى | D4: =[2]العملاء!A5 -> 457
A5: 4 | B5: احمد الشرقاوى | D5: =[2]العملاء!A6 -> 703
A6: 5 | B6: حسام مصطفى | D6: =[2]العملاء!A7 -> 0
A7: 6 | B7: على حسن ابو يزن | D7: =[2]العملاء!A8 -> 1787
A8: 7 | B8: ك /عاطف | D8: =[2]العملاء!A9 -> 0
A9: 8 | B9: ك/محمود رياضى | D9: =[2]العملاء!A10 -> 780
A10: 9 | B10: على ناجى | D10: =[2]العملاء!A11 -> 290
A11: 10 | B11: ام محمد مطاى | D11: =[2]العملاء!A12 -> 6894
A12: 11 | B12: رمضان عبد الجواد | D12: =[2]العملاء!A13 -> 945
A13: 12 | B13: شريف عسكر | D13: =[2]العملاء!A14 -> 1310
A14: 13 | B14: عبد الله الصعيدى | D14: =[2]العملاء!A15 -> 847
A15: 14 | B15: أ/ جمعه | D15: =[2]العملاء!A16 -> 215
A16: 15 | B16: كيمو المنيا | D16: =[2]العملاء!A17 -> 0
A17: 16 | B17: طه ابو الحسن | D17: =[2]العملاء!A18 -> 0
A18: 17 | B18: سامح شعبان | D18: =[2]العملاء!A19 -> 2795
A19: 18 | B19: أمنية | D19: =[2]العملاء!A20 -> 255
A20: 19 | B20: على محمد عبد العزيز | D20: =[2]العملاء!A21 -> 1277
A21: 20 | B21: مصطفى حسنى | D21: =[2]العملاء!A22 -> 5468
A22: 21 | B22: ملك محمد | D22: =[2]العملاء!A23 -> 0
A23: 22 | B23: أ/ هبه | D23: =[2]العملاء!A24 -> 10
A24: 23 | B24: حسن على السيد | D24: =[2]العملاء!A25 -> 1345
A25: 24 | B25: محمود بني مزار | D25: =[2]العملاء!A26 -> 8152
A26: 25 | B26: مدام /حنان مشغل | D26: =[2]العملاء!A27 -> 265
A27: 26 | B27: ام/ حسام مشغل | D27: =[2]العملاء!A28 -> 1378
A28: 27 | B28: ام عبد الله مشغل | D28: =[2]العملاء!A29 -> 150
A29: 28 | B29: ايهاب حسان مشغل | D29: =[2]العملاء!A30 -> 760
A30: 29 | B30: اصلاح | D30: =[2]العملاء!A31 -> 130
A31: 30 | B31: ام /وليد مشغل | D31: =[2]العملاء!A32 -> 349
A32: 31 | B32: سحر مشغل | D32: =[2]العملاء!A33 -> 100
A33: 32 | B33: محمد بيومي | D33: =[2]العملاء!A34 -> 0
A34: 33 | B34: محمد خلف | D34: =[2]العملاء!A35 -> 0
A35: 34 | B35: عملاء آخرون | D35: =[2]العملاء!A36 -> 595
A36: 35 | B36: أبودومة | D36: =[2]العملاء!A37 -> 2065
A37: 36 | B37: جمال عيد | D37: =[2]العملاء!A38 -> 0
